{"text_format":"1","workbook":"xlsx","n_sheets":13,"sheets":["Allgemeine Angaben","Ergebnisse","Diagramme","2a_Server","2b_Externe Speicher-Systeme","2c_Netzwerk-Geräte","2d_PDU","2e_Energie_Monitoring","2f_IT_Monitoring","2g_Kälteanlagen","Faktoren","2h_VirtuelleServer","Übersicht Datenbedarf"],"not_rendered":{"charts":31,"images":2,"macros":1,"external_links":0,"defined_names":171,"comments":0,"pivot_tables":1},"unopened":[],"bounds":{"document_bytes":16777216,"sheet_cells":100000,"rows_first":2000,"rows_last":500,"rows_between":2000,"halvings":0,"cell_chars":16384,"cell_head_chars":4096},"cells_cut":0,"cells_raw":0,"read":"whole","date_system":"1900"}

{"sheet":"Allgemeine Angaben","index":0,"n_rows":40,"n_cols":3,"rows_kept":40,"cut":false,"hidden":false,"merged":[[1,1,1,4]]}
[]
[null,"Datenerfassung KPI4DCE"]
[null,"Version: 2.1.1","2020-03-17"]
[]
[null,"Allgemeine Angaben"]
[]
[null,"Rechenzentrum"]
[null,"Bezeichung:"]
[null,"Adresse:"]
[null,"Sonstiges:"]
[]
[null,"Betreiber Rechenzentrum"]
[null,"Bezeichnung:"]
[null,"Adresse:"]
[null,"Website:"]
[null,"Sonstiges:"]
[]
[null,"Datenbereitstellung durch"]
[null,"Name:"]
[null,"Mail:"]
[null,"Bilanzdatum von:"]
[null,"Bilanzdatum bis:"]
[null,"Datum der Datenbereitstellung:"]
[null,"Sonstiges:"]
[]
[]
[]
[null,"Inhalt:"]
[null,"Allgemeine Angaben"]
[null,"Ergebnisse"]
[null,"Diagramme"]
[null,"2a IT-Inventarliste - Server"]
[null,"2b IT-Inventarliste - externe Speicher-Systeme"]
[null,"2c IT-Inventarliste - Netzwerk-Geräte"]
[null,"2d IT-Inventarliste - Neuanschaffung intelligenter PDUs"]
[null,"2e Monitoring Energie"]
[null,"2f Monitoring IT-Last"]
[null,"2g_Kälteanlagen"]
[null,"2h_VirtuelleServer"]
[null,"Übersicht Datenbedarf"]

{"sheet":"Ergebnisse","index":1,"n_rows":129,"n_cols":14,"rows_kept":129,"cut":false,"hidden":false,"merged":[[62,5,62,6],[62,7,62,8],[62,9,62,10]]}
[]
[null,"Berechnung Herstellungsaufwand, Aufwand Nutzungsphase, Nutzen des RZ (Performance) und Effizienzkennzahlen für Rechenzentren (KPI4DCE)"]
[]
[null,"Auswahl des Berichtszeitraums"]
[null,null,null,"Bitte eingeben!",null,null,null,null,null,"Abkürzung","Erläuterung und Diagrammbeschriftung"]
[null,"Start des Berichtszeitraums",null,"2018-01-01",null,null,null,null,null,"ADP","Abiotischer Rohstoffverbrauch (ADP)"]
[null,"Ende des Berichtszeitraums",null,"2018-12-31",null,null,null,null,null,"GWP","Treibhauseffekt (GWP:  Global Warming Potential)"]
[null,null,null,null,null,null,null,null,null,"KEA","Kumulierter Energieaufwand  (KEA)"]
[null,null,null,null,null,null,null,null,null,"Wasser","Wasserverbrauch"]
[]
[null,"Herstellungsaufwand"]
[]
[null,"Hardware","Herstellungsphase (gesamt)",null,null,null,"Herstellungsphase (bezogen auf Berichtszeitraum)",null,null,null,"Herstellungsphase bez. auf 1 Jahr"]
[null,null,"ADP","GWP","KEA","Wasser","ADP","GWP","KEA","Wasser","ADP","GWP","KEA","Wasser"]
[null,null,"kg Sb eq.","kg CO2 eq.","MJ","m²","kg Sb eq./BZ","kg CO2 eq./BZ","MJ/BZ","m³/BZ","kg Sb eq./a","kg CO2 eq./a","MJ/a","m³"]
[null,"Server",{"$f":"Production(\"Server\",\"ADP\",,TRUE)","v":0},{"$f":"Production(\"Server\",\"GWP\",,TRUE)","v":0},{"$f":"Production(\"Server\",\"KEA\",,TRUE)","v":0},0,{"$f":"Production(\"Server\",\"ADP\",,,Report_start,Report_end)","v":0},{"$f":"Production(\"Server\",\"GWP\",,,Report_start,Report_end)","v":0},{"$f":"Production(\"Server\",\"KEA\",,,Report_start,Report_end)","v":0},0,{"$f":"Production(\"Server\",\"ADP\")","v":0},{"$f":"Production(\"Server\",\"GWP\")","v":0},{"$f":"Production(\"Server\",\"KEA\")","v":0},0]
[null,"Speichersysteme",{"$f":"Production(\"Storage\",\"ADP\",,TRUE)","v":0},{"$f":"Production(\"Storage\",\"GWP\",,TRUE)","v":0},{"$f":"Production(\"Storage\",\"KEA\",,TRUE)","v":0},0,{"$f":"Production(\"Storage\",\"ADP\",,,Report_start,Report_end)","v":0},{"$f":"Production(\"Storage\",\"GWP\",,,Report_start,Report_end)","v":0},{"$f":"Production(\"Storage\",\"KEA\",,,Report_start,Report_end)","v":0},0,{"$f":"Production(\"Storage\",\"ADP\")","v":0},{"$f":"Production(\"Storage\",\"GWP\")","v":0},{"$f":"Production(\"Storage\",\"KEA\")","v":0},0]
[null,"Netzwerk",{"$f":"Production(\"Network\",\"ADP\",,TRUE)","v":0},{"$f":"Production(\"Network\",\"GWP\",,TRUE)","v":0},{"$f":"Production(\"Network\",\"KEA\",,TRUE)","v":0},0,{"$f":"Production(\"Network\",\"ADP\",,,Report_start,Report_end)","v":0},{"$f":"Production(\"Network\",\"GWP\",,,Report_start,Report_end)","v":0},{"$f":"Production(\"Network\",\"KEA\",,,Report_start,Report_end)","v":0},0,{"$f":"Production(\"Network\",\"ADP\")","v":0},{"$f":"Production(\"Network\",\"GWP\")","v":0},{"$f":"Production(\"Network\",\"KEA\")","v":0},0]
[null,"Summe",{"$f":"SUM(C16:C18)","v":0},{"$f":"SUM(D16:D18)","v":0},0,{"$f":"SUM(F16:F18)","v":0},{"$f":"SUM(G16:G18)","v":0},{"$f":"SUM(H16:H18)","v":0},{"$f":"SUM(I16:I18)","v":0},{"$f":"SUM(J16:J18)","v":0},{"$f":"SUM(K16:K18)","v":0},{"$f":"SUM(L16:L18)","v":0},{"$f":"SUM(M16:M18)","v":0},{"$f":"SUM(N16:N18)","v":0}]
[]
[]
[]
[null,"Aufwand Nutzungsphase"]
[]
[null,"Medium","Nutzungsphase (gesamte Nutzungsdauer)",null,null,null,"Nutzungsphase (nur Berichtszeitraum)",null,null,null,"Nutzungsphase bez. auf 1 Jahr"]
[null,null,"ADP","GWP","KEA","Wasser","ADP","GWP","KEA","Wasser","ADP","GWP","KEA","Wasser"]
[null,null,"kg Sb eq./ND","kg CO2 eq./ND","MJ/ND","m³/ND","kg Sb eq./BZ","kg CO2 eq./BZ","MJ","m³","kg Sb eq.","kg CO2 eq.","MJ","m³"]
[null,"Strom",{"$f":"Usephase($B28,C$26,,TRUE)","v":0},{"$f":"Usephase($B28,D$26,,TRUE)","v":0},{"$f":"Usephase($B28,E$26,,TRUE)","v":0},{"$f":"Usephase($B28,F$26,,TRUE)","v":"-"},{"$f":"Usephase($B28,G$26,,,Report_start,Report_end)","v":0},0,0,"-",{"$f":"Usephase($B28,K$26)","v":0},{"$f":"Usephase($B28,L$26)","v":0},0,"-"]
[null,"Brennstoff",{"$f":"Usephase($B29,C$26,,TRUE)","v":0},{"$f":"Usephase($B29,D$26,,TRUE)","v":0},0,"-",0,0,0,"-",{"$f":"Usephase($B29,K$26)","v":0},0,0,"-"]
[null,"Wasser für Kühlung",{"$f":"Usephase(\"Wasser\",C$26,,TRUE)","v":"-"},{"$f":"Usephase(\"Wasser\",D$26,,TRUE)","v":"-"},"-",{"$f":"Usephase(\"Wasser\",F$26,,TRUE)","v":0},{"$f":"Usephase(\"Wasser\",G$26,,,Report_start,Report_end)","v":"-"},{"$f":"Usephase(\"Wasser\",H$26,,,Report_start,Report_end)","v":"-"},{"$f":"Usephase(\"Wasser\",I$26,,,Report_start,Report_end)","v":"-"},{"$f":"Usephase(\"Wasser\",J$26,,,Report_start,Report_end)","v":0},{"$f":"Usephase(\"Wasser\",K$26)","v":"-"},"-","-",{"$f":"Usephase(\"Wasser\",N$26)","v":0}]
[null,"Kältemittel",{"$f":"Usephase(\"Kältemittel\",C26,,TRUE)","v":0},{"$f":"Usephase(\"Kältemittel\",D26,,TRUE)","v":0},{"$f":"Usephase(\"Kältemittel\",E26,,TRUE)","v":0},{"$f":"Usephase(\"Kältemittel\",F26,,TRUE)","v":"-"},{"$f":"Usephase($B31,G$26,,,Report_start,Report_end)","v":0},{"$f":"Usephase($B31,H$26,,,Report_start,Report_end)","v":0},{"$f":"Usephase($B31,I$26,,,Report_start,Report_end)","v":0},{"$f":"Usephase($B31,J$26,,,Report_start,Report_end)","v":"-"},{"$f":"Usephase($B31,K26)","v":0},{"$f":"Usephase($B31,L26)","v":0},0,"-"]
[null,"Summe",{"$f":"SUM(C28:C31)","v":0},0,0,0,0,0,0,0,0,0,0,0]
[]
[null,"Gebäudetechnik","PUE","Hinweis"]
[null,"Monitoringzeitraum",{"$f":"SUM(EnergieMonitoring[StrombedarfRZgesamt])/SUM(EnergieMonitoring[StrombedarfServer],EnergieMonitoring[StrombedarfStorage],EnergieMonitoring[StrombedarfNetzwerk])","v":{"$error":"#DIV/0!"}},"gesamter im Monitoring erfasster Zeitraum"]
[null,"Berichtszeitraum",{"$f":"SUM(EnergieMonitoring[StrombedarfRZgesamt]*EnergieMonitoring[RatioMZzuBZ])/SUM((EnergieMonitoring[StrombedarfServer]+EnergieMonitoring[StrombedarfStorage]+EnergieMonitoring[StrombedarfNetzwerk])*EnergieMonitoring[RatioMZzuBZ])","v":{"$error":"#DIV/0!"}},"nur Berichtszeitraum = korrigiert um RatioMZzuBZ"]
[]
[]
[null,"Allokation Nutzungsphase auf Hardware"]
[]
[null,"Allokation im Berichtszeitraum"]
[null,null,"Nennleistung \nim Berichts- zeitraum","Allokation \nnach Nennleistung","Energiebedarf pro Jahr im BZ Geräteangaben","Allokation nach Energiebedarf Geräteangeben","Energiebedarf im Berichts- zeitraum (Monitoring)","Allokation nach Energiebedarf  im Berichts- zeitraum (Monitoring)","Default Nenn- leistung im Berichtszeitraum","Allokation \nnach Defaultwerten","Auswahl Allokation"]
[null,null,"W","-","kWh/a","-","kWh/a","-","W","-","Monitoring","Bitte im Pulldown-Menü auswählen!"]
[null,"Server",{"$f":"SUM(Server[AnzahlServer]*Server[Nennleistung]*Server[KorrekturFaktorBZ])","v":0},{"$f":"C44/C$48","v":{"$error":"#DIV/0!"}},{"$f":"SUM(Server[AnzahlServer]*Server[EnergiebedarfProJahr]*Server[KorrekturFaktorBZ])","v":0},{"$f":"E44/E$48","v":{"$error":"#DIV/0!"}},{"$f":"SUM(EnergieMonitoring[StrombedarfServer]*EnergieMonitoring[RatioMZzuBZ])","v":0},{"$f":"G44/G$48","v":{"$error":"#DIV/0!"}},{"$f":"SUM(Server[AnzahlServer]*Pel_Server_Default*Server[KorrekturFaktorBZ])","v":0},{"$f":"I44/I$48","v":{"$error":"#DIV/0!"}},{"$f":"IF($K$43=\"Nennleistung\",D44,IF($K$43=\"Geräteangabe\",F44,IF($K$43=\"Monitoring\",H44,J44)))","v":{"$error":"#DIV/0!"}}]
[null,"Storage",{"$f":"SUM(Speicher[AnzahlStorage]*Speicher[Nennleistung]*Speicher[KorrekturFaktorBZ])","v":0},{"$f":"C45/C$48","v":{"$error":"#DIV/0!"}},{"$f":"SUM(Speicher[AnzahlStorage]*Speicher[EnergiebedarfProJahr]*Speicher[KorrekturFaktorBZ])","v":0},{"$f":"E45/E$48","v":{"$error":"#DIV/0!"}},{"$f":"SUM(EnergieMonitoring[StrombedarfStorage]*EnergieMonitoring[RatioMZzuBZ])","v":0},{"$f":"G45/G$48","v":{"$error":"#DIV/0!"}},{"$f":"SUM(Speicher[AnzahlStorage]*Pel_Storage_Default*Speicher[KorrekturFaktorBZ])","v":0},{"$f":"I45/I$48","v":{"$error":"#DIV/0!"}},{"$f":"IF($K$43=\"Nennleistung\",D45,IF($K$43=\"Geräteangabe\",F45,IF($K$43=\"Monitoring\",H45,J45)))","v":{"$error":"#DIV/0!"}}]
[null,"Netzwerk",{"$f":"SUM(Netzwerk[AnzahlNetzwerk]*Netzwerk[Nennleistung]*Netzwerk[KorrekturFaktorBZ])","v":0},{"$f":"C46/C$48","v":{"$error":"#DIV/0!"}},{"$f":"SUM(Netzwerk[AnzahlNetzwerk]*Netzwerk[EnergiebedarfProJahr]*Netzwerk[KorrekturFaktorBZ])","v":0},{"$f":"E46/E$48","v":{"$error":"#DIV/0!"}},{"$f":"SUM(EnergieMonitoring[StrombedarfNetzwerk]*EnergieMonitoring[RatioMZzuBZ])","v":0},{"$f":"G46/G$48","v":{"$error":"#DIV/0!"}},{"$f":"SUM(Netzwerk[AnzahlNetzwerk]*Pel_Switch_Default*Netzwerk[KorrekturFaktorBZ])","v":0},{"$f":"I46/I$48","v":{"$error":"#DIV/0!"}},{"$error":"#DIV/0!"}]
[null,"Infrastruktur",{"$f":"(PUE_BZ-1)*SUM(C44:C46)","v":{"$error":"#DIV/0!"}},{"$f":"C47/C$48","v":{"$error":"#DIV/0!"}},{"$f":"(PUE_BZ-1)*SUM(E44:E46)","v":{"$error":"#DIV/0!"}},{"$f":"E47/E$48","v":{"$error":"#DIV/0!"}},{"$f":"(PUE_BZ-1)*SUM(G44:G46)","v":{"$error":"#DIV/0!"}},{"$f":"G47/G$48","v":{"$error":"#DIV/0!"}},{"$f":"(PUE_BZ-1)*SUM(I44:I46)","v":{"$error":"#DIV/0!"}},{"$f":"I47/I$48","v":{"$error":"#DIV/0!"}},{"$error":"#DIV/0!"}]
[null,"Summe",{"$f":"SUM(C44:C47)","v":{"$error":"#DIV/0!"}},{"$error":"#DIV/0!"},{"$error":"#DIV/0!"},{"$error":"#DIV/0!"},{"$error":"#DIV/0!"},{"$error":"#DIV/0!"},{"$error":"#DIV/0!"},{"$error":"#DIV/0!"},{"$error":"#DIV/0!"}]
[]
[null,"Aufwand (Herstellung + Nutzung)"]
[]
[null,"Hardware","Aufwand (gesamt)",null,null,null,"Aufwand (bezogen auf Berichtszeitraum)",null,null,null,"Aufwand bez. auf 1 Jahr"]
[null,null,"ADP","GWP","KEA","Wasser","ADP","GWP","KEA","Wasser","ADP","GWP","KEA","Wasser"]
[null,null,"kg Sb eq.","kg CO2 eq.","MJ","m³","kg Sb eq./BZ","kg CO2 eq./BZ","MJ/BZ","m³/BZ","kg Sb eq./a","kg CO2 eq./a","MJ/a","m³/a"]
[null,"Server",{"$f":"C16+C$32*$K44","v":{"$error":"#DIV/0!"}},{"$error":"#DIV/0!"},{"$error":"#DIV/0!"},{"$error":"#DIV/0!"},{"$error":"#DIV/0!"},{"$error":"#DIV/0!"},{"$error":"#DIV/0!"},{"$error":"#DIV/0!"},{"$error":"#DIV/0!"},{"$error":"#DIV/0!"},{"$error":"#DIV/0!"},{"$error":"#DIV/0!"}]
[null,"Speichersysteme",{"$f":"C17+C$32*$K45","v":{"$error":"#DIV/0!"}},{"$error":"#DIV/0!"},{"$error":"#DIV/0!"},{"$error":"#DIV/0!"},{"$error":"#DIV/0!"},{"$error":"#DIV/0!"},{"$error":"#DIV/0!"},{"$error":"#DIV/0!"},{"$error":"#DIV/0!"},{"$error":"#DIV/0!"},{"$error":"#DIV/0!"},{"$error":"#DIV/0!"}]
[null,"Netzwerk",{"$f":"C18+C$32*$K46","v":{"$error":"#DIV/0!"}},{"$error":"#DIV/0!"},{"$error":"#DIV/0!"},{"$error":"#DIV/0!"},{"$error":"#DIV/0!"},{"$error":"#DIV/0!"},{"$error":"#DIV/0!"},{"$error":"#DIV/0!"},{"$error":"#DIV/0!"},{"$error":"#DIV/0!"},{"$error":"#DIV/0!"},{"$error":"#DIV/0!"}]
[null,"Infrastruktur",{"$f":"C$32*$K47","v":{"$error":"#DIV/0!"}},{"$error":"#DIV/0!"},{"$error":"#DIV/0!"},{"$error":"#DIV/0!"},{"$error":"#DIV/0!"},{"$error":"#DIV/0!"},{"$error":"#DIV/0!"},{"$error":"#DIV/0!"},{"$error":"#DIV/0!"},{"$error":"#DIV/0!"},{"$error":"#DIV/0!"},{"$error":"#DIV/0!"}]
[null,"Summe",{"$f":"SUM(C55:C58)","v":{"$error":"#DIV/0!"}},{"$f":"SUM(D55:D58)","v":{"$error":"#DIV/0!"}},{"$error":"#DIV/0!"},{"$error":"#DIV/0!"},{"$error":"#DIV/0!"},{"$error":"#DIV/0!"},{"$error":"#DIV/0!"},{"$error":"#DIV/0!"},{"$error":"#DIV/0!"},{"$error":"#DIV/0!"},{"$error":"#DIV/0!"},{"$error":"#DIV/0!"}]
[]
[null,"Nutzen des Rechenzentrums"]
[]
[null,"Hardware","Performance Bezeichnung",null,null,"Gesamte Nutzungsdauer",null,"Im Berichtszeitraum",null,"Bezogen auf 1 Jahr"]
[null,"Server",{"$f":"INDEX(Server[ServerBenchmarkBezeichnung],1)","v":0},null,null,{"$f":"SUM(Server[AnzahlServer]*Server[ServerBenchmarkWert]*Server[MittlereCPUAuslastung]*Server[EffektiveND]*3600*24*TageProJahr)","v":0},"ops/ND",{"$f":"SUM(Server[AnzahlServer]*Server[ServerBenchmarkWert]*Server[MittlereCPUAuslastung]*Server[KorrekturFaktorBZ]*3600*24*TageProJahr)","v":0},"ops/BZ",{"$f":"SUM(Server[AnzahlServer]*Server[ServerBenchmarkWert]*Server[MittlereCPUAuslastung]*Server[KorrekturFaktorBZ]*3600*24*TageProJahr)/FaktorJahre(Report_start,Report_end,TageProJahr)","v":0},"ops/a"]
[null,"Speichersysteme","Belegte Speicherkapazität",null,null,{"$f":"SUM(Speicher[AnzahlStorage]*Speicher[SpeicherkapazitaetGByte]*Speicher[MittlereBelegungSpeicherplatz])","v":0},"GByte/ND",{"$f":"SUM(Speicher[AnzahlStorage]*Speicher[SpeicherkapazitaetGByte]*Speicher[MittlereBelegungSpeicherplatz]*Speicher[KorrekturFaktorBZ])","v":0},"GByte/BZ",{"$f":"SUM(Speicher[AnzahlStorage]*Speicher[SpeicherkapazitaetGByte]*Speicher[MittlereBelegungSpeicherplatz]*Speicher[KorrekturFaktorBZ])/FaktorJahre(Report_start,Report_end,TageProJahr)","v":0},"GByte/a"]
[null,"Netzwerk","Externer Datenverkehr",null,null,{"$f":"SUM(Netzwerk[AnzahlNetzwerk]*Netzwerk[MittlereGenutzteBandbreiteExternerDatenverkehr]*Netzwerk[EffektiveND]*3600*24*TageProJahr/1024)","v":0},"Gbit/ND",{"$f":"SUM(Netzwerk[AnzahlNetzwerk]*Netzwerk[MittlereGenutzteBandbreiteExternerDatenverkehr]*Netzwerk[KorrekturFaktorBZ]*3600*24*TageProJahr/1024)","v":0},"Gbit/BZ",{"$f":"SUM(Netzwerk[AnzahlNetzwerk]*Netzwerk[MittlereGenutzteBandbreiteExternerDatenverkehr]*Netzwerk[KorrekturFaktorBZ]*3600*24*TageProJahr/1024)/FaktorJahre(Report_start,Report_end,TageProJahr)","v":0},"Gbit/a"]
[null,"Infrastruktur","Energiebereitstellung",null,null,{"$f":"SUM(EnergieMonitoring[StrombedarfServer]+EnergieMonitoring[StrombedarfStorage]+EnergieMonitoring[StrombedarfNetzwerk])","v":0},"kWh/MZ",{"$f":"SUM((EnergieMonitoring[StrombedarfServer]+EnergieMonitoring[StrombedarfStorage]+EnergieMonitoring[StrombedarfNetzwerk])*EnergieMonitoring[RatioMZzuBZ])","v":0},"kWh/BZ",{"$f":"SUM((EnergieMonitoring[StrombedarfServer]+EnergieMonitoring[StrombedarfStorage]+EnergieMonitoring[StrombedarfNetzwerk])*EnergieMonitoring[RatioMZzuBZ])/FaktorJahre(Report_start,Report_end,TageProJahr)","v":{"$error":"#VALUE!"}},"kWh/a"]
[]
[]
[null,"KPIs","= Nutzen / Aufwand"]
[]
[null,"Bezeichnungen",null,"ADP",null,"GWP",null,"KEA",null,"Wasser"]
[null,null,null,"kg Sb eq.",null,"kg CO2 eq.",null,"MJ",null,"m³"]
[null,"Server","ops","ADPE_SV",null,"GWPE_SV",null,"CEDE_SV",null,"WDE_SV"]
[null,"Speicher","GByte","ADPE_ST",null,"GWPE_ST",null,"CEDE_ST",null,"WDE_ST"]
[null,"Netzwerk","Mbit/s","ADPE_NW",null,"GWPE_NW",null,"CEDE_NW",null,"WDE_NW"]
[null,"Infrastruktur",null,"DCiRE_ADP",null,"DCiRE_THG",null,"DCiRE_KEA",null,"DCiRE_Wasser"]
[]
[null,"Bezogen auf Berichtszeitraum *",null,"ADP",null,"GWP",null,"KEA",null,"Wasser"]
[null,null,null,"kg Sb eq.",null,"kg CO2 eq.",null,"MJ",null,"m³"]
[null,"Server","ops",{"$f":"H64/G55","v":{"$error":"#DIV/0!"}},{"$f":"$C81&\"/\"&D$80","v":"ops/kg Sb eq."},{"$f":"H64/H55","v":{"$error":"#DIV/0!"}},{"$f":"$C81&\"/\"&F$80","v":"ops/kg CO2 eq."},{"$f":"H64/I55","v":{"$error":"#DIV/0!"}},{"$f":"$C81&\"/\"&H$80","v":"ops/MJ"},{"$f":"H64/J55","v":{"$error":"#DIV/0!"}},{"$f":"$C81&\"/\"&J$80","v":"ops/m³"}]
[null,"Speicher","GByte",{"$f":"H65/G56","v":{"$error":"#DIV/0!"}},{"$f":"$C82&\"/\"&D$80","v":"GByte/kg Sb eq."},{"$f":"H65/H56","v":{"$error":"#DIV/0!"}},{"$f":"$C82&\"/\"&F$80","v":"GByte/kg CO2 eq."},{"$f":"H65/I56","v":{"$error":"#DIV/0!"}},{"$f":"$C82&\"/\"&H$80","v":"GByte/MJ"},{"$f":"H65/J56","v":{"$error":"#DIV/0!"}},{"$f":"$C82&\"/\"&J$80","v":"GByte/m³"}]
[null,"Netzwerk","Gbit",{"$f":"H66/G57","v":{"$error":"#DIV/0!"}},"Gbit/kg Sb eq.",{"$f":"H66/H57","v":{"$error":"#DIV/0!"}},{"$f":"$C83&\"/\"&F$80","v":"Gbit/kg CO2 eq."},{"$f":"H66/I57","v":{"$error":"#DIV/0!"}},{"$f":"$C83&\"/\"&H$80","v":"Gbit/MJ"},{"$f":"H66/J57","v":{"$error":"#DIV/0!"}},{"$f":"$C83&\"/\"&J$80","v":"Gbit/m³"}]
[null,"Infrastruktur",null,{"$f":"SUM(G55:G57)/G59","v":{"$error":"#DIV/0!"}},{"$f":"$D80&\"/\"&D$80","v":"kg Sb eq./kg Sb eq."},{"$f":"SUM(H55:H57)/H59","v":{"$error":"#DIV/0!"}},{"$f":"$F80&\"/\"&F$80","v":"kg CO2 eq./kg CO2 eq."},{"$f":"SUM(I55:I57)/I59","v":{"$error":"#DIV/0!"}},{"$f":"$H80&\"/\"&H$80","v":"MJ/MJ"},{"$f":"SUM(J55:J57)/J59","v":{"$error":"#DIV/0!"}},{"$f":"$J80&\"/\"&J$80","v":"m³/m³"}]
[null,"* KPIs \"Bezogen auf Berichtszeitraum\" und \"Bezogen auf 1 Jahr\" sind identisch, da sich \"FaktorJahre\" rauskürzt"]
[]
[null,"Mengengerüst Rechenzentrum"]
[]
[null,"Server"]
[null,"Anzahl",null,{"$f":"SUM(Server[AnzahlServer])","v":0},"[Stck]"]
[null,"Mittlere Nutzungsdauer",null,{"$f":"SUM(Server[AnzahlServer]*Server[EffektiveND])/SUM(Server[AnzahlServer])","v":{"$error":"#DIV/0!"}},"[a]"]
[null,"Nennleistung ohne Redundanz",null,{"$f":"SUM(Server[AnzahlServer]*Server[Nennleistung])","v":0},"[W]"]
[null,"Server Benchmark",null,{"$f":"SUM(Server[AnzahlServer]*Server[ServerBenchmarkWert])","v":0},"[Ops/s]"]
[null,"Anzahl CPUs",null,{"$f":"SUM(Server[AnzahlServer]*Server[AnzahlCPU])","v":0},"[Anzahl]"]
[null,"Anzahl Kerne",null,{"$f":"SUM(Server[AnzahlServer]*Server[AnzahlKerneProCPU]*Server[AnzahlCPU])","v":0},"[Anzahl]"]
[null,"RAM",null,{"$f":"SUM(Server[AnzahlServer]*Server[GByteRAM])","v":0},"[GByte]"]
[null,"Anzahl RAM Module",null,{"$f":"SUM(Server[AnzahlServer]*Server[AnzahlRAMModule])","v":0},"[Anzahl]"]
[null,"Anzahl HDD",null,{"$f":"SUM(Server[AnzahlServer]*Server[AnzahlHDD])","v":0},"[Anzahl]"]
[null,"Anzahl SSD",null,{"$f":"SUM(Server[AnzahlServer]*Server[AnzahlSSD])","v":0},"[Anzahl]"]
[null,"Anzahl redundante Netzteile",null,{"$f":"SUM(Server[AnzahlServer]*Server[AnzahlNetzteile])","v":0},"[Anzahl]"]
[null,"Mittlere CPU-Auslastung pro Server",null,{"$f":"SUM(Server[AnzahlServer]*Server[MittlereCPUAuslastung])/SUM(Server[AnzahlServer])","v":{"$error":"#DIV/0!"}},"[-]"]
[null,"Mittlere Leistungsaufnahme pro Server",null,{"$f":"AVERAGE(Server[AnzahlServer]*Server[MittlereLeistungsaufnahme])","v":0},"[W/Stck]"]
[null,"Energiebedarf pro Jahr",null,{"$f":"SUM(Server[AnzahlServer]*Server[EnergiebedarfProJahr])","v":0},"[kWh]"]
[]
[null,"Speichersysteme"]
[null,"Anzahl",null,{"$f":"SUM(Speicher[AnzahlStorage])","v":0},"[Stck]"]
[null,"Mittlere Nutzungsdauer",null,{"$f":"SUM(Speicher[AnzahlStorage]*Speicher[EffektiveND])/SUM(Speicher[AnzahlStorage])","v":{"$error":"#DIV/0!"}},"[a]"]
[null,"Nennleistung ohne Redundanz",null,{"$f":"SUM(Speicher[AnzahlStorage]*Speicher[Nennleistung])","v":0},"[W]"]
[null,"Speicherkapazität",null,{"$f":"SUM(Speicher[AnzahlStorage]*Speicher[SpeicherkapazitaetGByte])","v":0},"[GByte]"]
[null,"Anzahl HDD",null,{"$f":"SUM(Speicher[AnzahlStorage]*Speicher[AnzahlHDD])","v":0},"[Anzahl]"]
[null,"Anzahl SSD",null,{"$f":"SUM(Speicher[AnzahlStorage]*Speicher[AnzahlSSD])","v":0},"[Anzahl]"]
[null,"Anzahl Netzteile",null,{"$f":"SUM(Speicher[AnzahlStorage]*Speicher[AnzahlNetzteile])","v":0},"[Anzahl]"]
[null,"Mittlere Belegung Speicherplatz",null,{"$f":"SUM(Speicher[AnzahlStorage]*Speicher[MittlereBelegungSpeicherplatz]*Speicher[SpeicherkapazitaetGByte])/SUM(Speicher[AnzahlStorage]*Speicher[SpeicherkapazitaetGByte])","v":{"$error":"#DIV/0!"}},"[-]"]
[null,"Mittlere Anzahl Speicherzugriffe pro Sekunde",null,{"$f":"SUM(Speicher[AnzahlStorage]*Speicher[MittlereAnzahlSpeicherzugriffeProSekundeIOPS])","v":0},"[IO/s]"]
[null,"Mittlere Datenmenge Lesen Schreiben pro Sekunde",null,{"$f":"SUM(Speicher[AnzahlStorage]*Speicher[MittlereDatenmengeLesenSchreibenProSekunde])","v":0},"[GByte/s]"]
[null,"Mittlere Leistungsaufnahme pro Speicher",null,{"$f":"AVERAGE(Speicher[AnzahlStorage]*Speicher[MittlereLeistungsaufnahme])","v":0},"[W/Stck]"]
[null,"Energiebedarf pro Jahr",null,{"$f":"SUM(Speicher[AnzahlStorage]*Speicher[EnergiebedarfProJahr])","v":0},"[kWh]"]
[]
[null,"Netzwerk-Geräte"]
[null,"Anzahl",null,{"$f":"SUM(Netzwerk[AnzahlNetzwerk])","v":0},"[Stck]"]
[null,"Mittlere Nutzungsdauer",null,{"$f":"SUM(Netzwerk[AnzahlNetzwerk]*Netzwerk[EffektiveND])/SUM(Netzwerk[AnzahlNetzwerk])","v":{"$error":"#DIV/0!"}},"[a]"]
[null,"Nennleistung ohne Redundanz",null,{"$f":"SUM(Netzwerk[AnzahlNetzwerk]*Netzwerk[Nennleistung])","v":0},"[W]"]
[null,"Anzahl Ports",null,{"$f":"SUM(Netzwerk[AnzahlNetzwerk]*Netzwerk[AnzahlPorts])","v":0},"[Anzahl]"]
[null,"Maximale Bandbreite",null,{"$f":"SUM(Netzwerk[AnzahlNetzwerk]*Netzwerk[MaximaleBandbreiteProPort]*Netzwerk[AnzahlPorts])","v":0},"[Mbit/s]"]
[null,"Anzahl Netzteile",null,{"$f":"SUM(Netzwerk[AnzahlNetzwerk]*Netzwerk[AnzahlNetzteile])","v":0},"[Anzahl]"]
[null,"Mittlere genutzte Bandbreite interner Datenverkehr",null,{"$f":"SUM(Netzwerk[AnzahlNetzwerk]*Netzwerk[MittlereGenutzteBandbreiteInternerDatenverkehr])","v":0},"[Mbit/s]"]
[null,"Mittlere genutzte Bandbreite externer Datenverkehr",null,{"$f":"SUM(Netzwerk[AnzahlNetzwerk]*Netzwerk[MittlereGenutzteBandbreiteExternerDatenverkehr])","v":0},"[Mbit/s]"]
[null,"Mittlere Leistungsaufnahme pro Switch",null,{"$f":"SUM(Netzwerk[AnzahlNetzwerk]*Netzwerk[MittlereLeistungsaufnahme])/SUM(Netzwerk[AnzahlNetzwerk])","v":{"$error":"#DIV/0!"}},"[W/Stck]"]
[null,"Energiebedarf pro Jahr",null,{"$f":"SUM(Netzwerk[AnzahlNetzwerk]*Netzwerk[EnergiebedarfProJahr])","v":0},"[kWh]"]

{"sheet":"Diagramme","index":2,"n_rows":135,"n_cols":67,"rows_kept":135,"cut":false,"hidden":false,"merged":[]}
[null,null,null,null,null,null,null,null,null,"ADP & GWP",null,null,null,null,null,null,null,"KEA & Wasser",null,null,null,null,null,null,null,null,"Rel. Verteil.",null,null,null,null,null,null,null,"Nutzen",null,null,null,null,null,null,null,"ADPE_i",null,null,null,null,null,null,null,"GWPE_i",null,null,null,null,null,null,null,"CEDE_i",null,null,null,null,null,null,null,"WDE_i"]
[null,null,"Ressourcenaufwand ADP und GWP",null,null,null,null,null,null,null,"Ressourcenaufwand KEA und Wasser",null,null,null,null,null,null,null,null,null,null,null,null,null,null,null,null,"Nutzen des Rechenzentrums",null,null,null,null,null,null,null,"Ressourceneffizienzkennzahlen (KPI4DCE)",null,null,null,null,null,null,null,"Ressourceneffizienzkennzahlen (KPI4DCE)",null,null,null,null,null,null,null,"Ressourceneffizienzkennzahlen (KPI4DCE)",null,null,null,null,null,null,null,"Ressourceneffizienzkennzahlen (KPI4DCE)"]
[null,null,"pro Jahr im angegebenen Berichtszeitraum",null,null,null,null,null,null,null,"pro Jahr im angegebenen Berichtszeitraum",null,null,null,null,null,null,null,null,null,null,null,null,null,null,null,null,"pro Jahr im angegebenen Berichtszeitraum",null,null,null,null,null,null,null,"Abiotische Rohstoffeffizienz (ADPE_i)",null,null,null,null,null,null,null,"Treibhausgaseffizienz (GWPE_i)",null,null,null,null,null,null,null,"Kumulierter Energieaufwand Effizienz (CEDE_i)",null,null,null,null,null,null,null,"Wasserbedarfseffizienz (WDE_i)"]
[]
[]
[]
[]
[]
[]
[]
[]
[]
[]
[]
[]
[]
[]
[]
[]
[]
[]
[]
[]
[]
[]
[]
[]
[]
[]
[]
[]
[]
[]
[]
[]
[]
[]
[]
[]
[null,null,null,null,null,null,null,null,null,null,null,null,null,null,null,null,null,null,null,null,null,null,null,null,null,null,null,null,"Nutzen des Rechenzentrums",null,null,null,null,null,null,"Name","Server","Speicher","Netzwerk","Infrastruktur"]
[null,null,null,null,null,null,null,null,null,null,null,null,null,null,null,null,null,null,null,null,null,null,null,null,null,null,null,null,"IT-Energieverbrauch",null,{"$f":"Ergebnisse!J67","v":{"$error":"#VALUE!"}},"kWh/a",null,null,null,"ADP","ADPESV","ADPEST","ADPENW","DCiREADP"]
[null,null,null,null,null,null,null,null,null,null,null,null,null,null,null,null,null,null,null,null,null,null,null,null,null,null,null,null,"Rechenleistung pro Jahr [SPECint /a]",null,{"$f":"Ergebnisse!J64","v":0},"SPEC_int/a",null,null,null,"KEA","CEDESV","CEDEST","CEDENW","DCiREKEA"]
[null,null,null,null,null,null,null,null,null,null,null,null,null,null,null,null,null,null,null,null,null,null,null,null,null,null,null,null,"Speicherplatz belegt (Nutzdaten) [GB]",null,{"$f":"Ergebnisse!J65","v":0},"GB/a",null,null,null,"THG","GWPESV","GWPEST","GWPENW","DCiRETHG"]
[null,null,null,null,null,null,null,null,null,null,null,null,null,null,null,null,null,null,null,null,null,null,null,null,null,null,null,null,"Externer Datentransfer pro Jahr [Gb/a]",null,{"$f":"Ergebnisse!J66","v":0},"Gb/a",null,null,null,"Wasser","WDESV","WDEST","WDENW","DCiREWasser"]
[]
[null,null,null,null,null,null,null,null,null,null,null,null,null,null,null,null,null,null,null,null,null,null,null,null,null,null,null,null,"Einheiten umgerechnet"]
[null,null,null,null,null,null,null,null,null,null,null,null,null,null,null,null,null,null,null,null,null,null,null,null,null,null,null,null,"Strombedarf IT [MWh/a]",null,{"$f":"AE41/1000","v":{"$error":"#VALUE!"}},"MWh/a",null,null,null,"Wert","Server","Speicher","Netzwerk","Infrastruktur"]
[null,null,null,null,null,null,null,null,null,null,null,null,null,null,null,null,null,null,null,null,null,null,null,null,null,null,null,null,"Server \n[Mrd. OPS SPEC_int/a]",null,{"$f":"AE42/1000000000","v":0},"Mrd. OPS SPEC_int/a",null,null,null,"ADP",{"$f":"Ergebnisse!D81","v":{"$error":"#DIV/0!"}},{"$f":"Ergebnisse!D82","v":{"$error":"#DIV/0!"}},{"$f":"Ergebnisse!D83","v":{"$error":"#DIV/0!"}},{"$f":"Ergebnisse!D84","v":{"$error":"#DIV/0!"}}]
[null,null,null,null,null,null,null,null,null,null,null,null,null,null,null,null,null,null,null,null,null,null,null,null,null,null,null,null,"Belegter Speicher \n[TB/a]",null,{"$f":"AE43/1024","v":0},"TB/a",null,null,null,"KEA",{"$f":"Ergebnisse!H81","v":{"$error":"#DIV/0!"}},{"$f":"Ergebnisse!H82","v":{"$error":"#DIV/0!"}},{"$f":"Ergebnisse!H83","v":{"$error":"#DIV/0!"}},{"$f":"Ergebnisse!H84","v":{"$error":"#DIV/0!"}}]
[null,null,null,null,null,null,null,null,null,null,null,null,null,null,null,null,null,null,null,null,null,null,null,null,null,null,null,null,"Netzwerk (externer Datenverkehr) [10^8 Gb/a]",null,{"$f":"AE44/100000000","v":0},"108 Gb/a",null,null,null,"THG",{"$f":"Ergebnisse!F81","v":{"$error":"#DIV/0!"}},{"$f":"Ergebnisse!F82","v":{"$error":"#DIV/0!"}},{"$f":"Ergebnisse!F83","v":{"$error":"#DIV/0!"}},{"$f":"Ergebnisse!F84","v":{"$error":"#DIV/0!"}}]
[null,null,null,null,null,null,null,null,null,null,null,null,null,null,null,null,null,null,null,null,null,null,null,null,null,null,null,null,null,null,null,null,null,null,null,"Wasser",{"$f":"Ergebnisse!J81","v":{"$error":"#DIV/0!"}},{"$f":"Ergebnisse!J82","v":{"$error":"#DIV/0!"}},{"$f":"Ergebnisse!J83","v":{"$error":"#DIV/0!"}},{"$f":"Ergebnisse!J84","v":{"$error":"#DIV/0!"}}]
[]
[null,null,null,null,null,null,null,null,null,null,null,null,null,null,null,null,null,null,null,null,null,null,null,null,null,null,null,null,null,null,null,null,null,null,null,"DCiE",null,null,null,{"$f":"1/PUE_BZ","v":{"$error":"#DIV/0!"}}]
[]
[null,null,null,null,null,null,null,null,null,null,null,null,null,null,null,null,null,null,null,null,null,null,null,null,null,null,null,null,null,null,null,null,null,null,null,"Einheit","Server","Speicher","Netzwerk","Infrastruktur"]
[null,null,null,null,null,null,null,null,null,null,null,null,null,null,null,null,null,null,null,null,null,null,null,null,null,null,null,null,null,null,null,null,null,null,null,"ADP","OPS/kg Sb.eq.","GB/kg Sb.eq.","Gb/kg Sb.eq.","kg Sb.eq./kg Sb.eq."]
[null,null,null,null,null,null,null,null,null,null,null,null,null,null,null,null,null,null,null,null,null,null,null,null,null,null,null,null,null,null,null,null,null,null,null,"KEA","OPS/MJ ","GB/MJ ","Gb/MJ ","MJ/MJ"]
[null,null,null,null,null,null,null,null,null,null,null,null,null,null,null,null,null,null,null,null,null,null,null,null,null,null,null,null,null,null,null,null,null,null,null,"THG","OPS/kg CO2.eq.","GB/kg CO2.eq.","Gb/kg CO2.eq.","kg CO2.eq./kg CO2.eq."]
[null,null,null,null,null,null,null,null,null,null,null,null,null,null,null,null,null,null,null,null,null,null,null,null,null,null,null,null,null,null,null,null,null,null,null,"Wasser","OPS/l","GB/l","Gb/l","l/l"]
[]
[]
[]
[]
[]
[]
[]
[]
[]
[]
[]
[]
[]
[]
[]
[]
[]
[]
[]
[]
[]
[]
[]
[]
[]
[]
[]
[]
[]
[]
[]
[]
[]
[]
[]
[]
[]
[]
[]
[]
[]
[]
[]
[]
[]
[]
[]
[]
[]
[]
[]
[]
[]
[]
[]
[]
[]
[]
[]
[]
[]
[]
[]
[]
[]
[]
[]
[]
[]
[]
[]
[]
[]
[]
[null,"Stück"]
[null,"Jahre"]

{"sheet":"2a_Server","index":3,"n_rows":34,"n_cols":31,"rows_kept":34,"cut":false,"hidden":false,"merged":[[5,2,5,4],[6,2,6,4],[7,2,7,4]]}
[]
[null,"IT-Inventarliste - Anlage 2a (Server) zur KPI4DCE-Berechnung"]
[null,"Dokumentation gemäß Anforderungen 3.1.2.1 und 3.2.2.1 der Vergabekriterien"]
[]
[null,"Allgemeine Angaben",null,null,null,null,null,"Legende"]
[null,"Rechenzentrum:",{"$f":"IF('Allgemeine Angaben'!C8<>\"\",'Allgemeine Angaben'!C8,\"\")","v":""},null,null,null,null,"Obligatorische Angaben Antragstellung Blauer Engel"]
[null,"Bilanzdatum von:",{"$f":"IF('Allgemeine Angaben'!C21<>\"\",'Allgemeine Angaben'!C21,\"\")","v":""},null,null,null,null,"Ergänzende Angaben KPI4DCE (über das [+] ausklappbar)"]
[null,"Bilanzdatum bis:",{"$f":"IF('Allgemeine Angaben'!C22<>\"\",'Allgemeine Angaben'!C22,\"\")","v":""},null,null,null,null,"* Angaben für Herstellungsaufwand"]
[null,null,null,null,null,null,null,"** Angaben für Zuordnung (Allokation)"]
[null,null,null,null,null,null,null,"*** Angaben für Nutzen"]
[null,"Hinweis: Alle Angaben werden pro Gerät gemacht, auch wenn dieses mehrfach vorkommt",null,null,null,null,null,"Automatisch berechnete Werte (keine Eingabe)"]
[null,"*",null,"*","*",null,null,"**",null,"***","***",null,"*","*","*",null,null,"*","*","*","*","*","*","*","*",null,"***","**","**"]
[null,"Anzahl bauglei-\ncher Geräte","Eindeutige ID oder Komma-separierte ID-Liste","Datum der \nInbetriebnahme","Datum der \nAußerbetriebnahme","Hersteller","Modell","Nennleistung ohne Redundanz","Energieeffizienz-Standard Netzteile","Bezeichnung Server Benchmark ","Server Benchmark","Bei Inanspruchnahme der Ausnahmeregelung gem. 3.2.2.3 hier bitte Abweichung begründen","Geplante Nutzungsdauer","Servertyp","Anteil des einzelnen Bladeservers am Blade-System (z.B. 1/16)","Anschaffungskosten\n(optional)","Währung Anschaffungskosten\n(optional)","Anzahl CPUs","Anzahl Kerne pro CPU","RAM","Anzahl RAM Module","Anzahl HDD","Anzahl SSD","Speicherkapazität pro SSD","Anzahl redundante Netzteile","Gewicht [kg]\n(optional)","Mittlere CPU-Auslastung","Mittlere Leistungsaufnahme","Energiebedarf pro Jahr","Effektive Nutzungsdauer","Korrekturfaktor Berichtszeitraum (für Jahres- und Leistungswerte)"]
[null,"[Stck]","[Text (,Text, Text, ...)]","[TT.MM.JJJJ]","[TT.MM.JJJJ]","[Text]","[Text]","[W/Stck]","(80 PLUS xxx)","(für neue Server: SPEC SERT 2: Eff_active)","[Zahlenwert]","[Text]","[Jahre]","[Rack | Blade]","(bei Rack-Server = 0, bei Blade-Server >0 .. 1)","[Zahlenwert/Stck]","[z.B. EUR | USD]","[Anzahl/Stck]","[Anzahl]","[GByte/RAMModul]","[Anzahl/Stck]","[Anzahl/Stck]","[Anzahl/Stck]","[GByte/Stck]","[Anzahl/Stck]","[kg/Stck]","[100%]","[W/Stck]","[kWh/Stck]","[a]"]
[null,"AnzahlServer","UniqueID","DatumInbetriebnahme","DatumAusserbetriebnahme","Herstellername","Modellname","Nennleistung","NetzeilEnergieStandard","ServerBenchmarkBezeichnung","ServerBenchmarkWert","BegruendungAusnahme","GeplanteNutzungsdauer","ServertypRack_Blade","AnteilAmBladeSystem","AnschaffungskostenProStueck","WaehrungAnschaffungskosten","AnzahlCPU","AnzahlKerneProCPU","GByteRAM","AnzahlRAMModule","AnzahlHDD","AnzahlSSD","GByteSSD","AnzahlNetzteile","Gewicht","MittlereCPUAuslastung","MittlereLeistungsaufnahme","EnergiebedarfProJahr","EffektiveND","KorrekturFaktorBZ"]
[null,null,null,null,null,null,null,null,null,null,null,null,null,null,null,null,null,null,null,null,null,null,null,null,null,null,null,null,null,{"$f":"EffektiveND(Server[[#This Row],[DatumInbetriebnahme]],Server[[#This Row],[DatumAusserbetriebnahme]],Server[[#This Row],[GeplanteNutzungsdauer]], ND_default_server)","v":3},{"$f":"KorrFaktBZ(Server[DatumInbetriebnahme]*1,Server[DatumAusserbetriebnahme]*1,Report_start*1,Report_end*1)","v":1}]
[null,null,null,null,null,null,null,null,null,null,null,null,null,null,null,null,null,null,null,null,null,null,null,null,null,null,null,null,null,{"$f":"EffektiveND(Server[[#This Row],[DatumInbetriebnahme]],Server[[#This Row],[DatumAusserbetriebnahme]],Server[[#This Row],[GeplanteNutzungsdauer]], ND_default_server)","v":3},{"$f":"KorrFaktBZ(Server[DatumInbetriebnahme]*1,Server[DatumAusserbetriebnahme]*1,Report_start*1,Report_end*1)","v":1}]
[null,null,null,null,null,null,null,null,null,null,null,null,null,null,null,null,null,null,null,null,null,null,null,null,null,null,null,null,null,{"$f":"EffektiveND(Server[[#This Row],[DatumInbetriebnahme]],Server[[#This Row],[DatumAusserbetriebnahme]],Server[[#This Row],[GeplanteNutzungsdauer]], ND_default_server)","v":3},{"$f":"KorrFaktBZ(Server[DatumInbetriebnahme]*1,Server[DatumAusserbetriebnahme]*1,Report_start*1,Report_end*1)","v":1}]
[null,null,null,null,null,null,null,null,null,null,null,null,null,null,null,null,null,null,null,null,null,null,null,null,null,null,null,null,null,{"$f":"EffektiveND(Server[[#This Row],[DatumInbetriebnahme]],Server[[#This Row],[DatumAusserbetriebnahme]],Server[[#This Row],[GeplanteNutzungsdauer]], ND_default_server)","v":3},{"$f":"KorrFaktBZ(Server[DatumInbetriebnahme]*1,Server[DatumAusserbetriebnahme]*1,Report_start*1,Report_end*1)","v":1}]
[null,null,null,null,null,null,null,null,null,null,null,null,null,null,null,null,null,null,null,null,null,null,null,null,null,null,null,null,null,{"$f":"EffektiveND(Server[[#This Row],[DatumInbetriebnahme]],Server[[#This Row],[DatumAusserbetriebnahme]],Server[[#This Row],[GeplanteNutzungsdauer]], ND_default_server)","v":3},{"$f":"KorrFaktBZ(Server[DatumInbetriebnahme]*1,Server[DatumAusserbetriebnahme]*1,Report_start*1,Report_end*1)","v":1}]
[null,null,null,null,null,null,null,null,null,null,null,null,null,null,null,null,null,null,null,null,null,null,null,null,null,null,null,null,null,{"$f":"EffektiveND(Server[[#This Row],[DatumInbetriebnahme]],Server[[#This Row],[DatumAusserbetriebnahme]],Server[[#This Row],[GeplanteNutzungsdauer]], ND_default_server)","v":3},{"$f":"KorrFaktBZ(Server[DatumInbetriebnahme]*1,Server[DatumAusserbetriebnahme]*1,Report_start*1,Report_end*1)","v":1}]
[null,null,null,null,null,null,null,null,null,null,null,null,null,null,null,null,null,null,null,null,null,null,null,null,null,null,null,null,null,{"$f":"EffektiveND(Server[[#This Row],[DatumInbetriebnahme]],Server[[#This Row],[DatumAusserbetriebnahme]],Server[[#This Row],[GeplanteNutzungsdauer]], ND_default_server)","v":3},{"$f":"KorrFaktBZ(Server[DatumInbetriebnahme]*1,Server[DatumAusserbetriebnahme]*1,Report_start*1,Report_end*1)","v":1}]
[null,null,null,null,null,null,null,null,null,null,null,null,null,null,null,null,null,null,null,null,null,null,null,null,null,null,null,null,null,{"$f":"EffektiveND(Server[[#This Row],[DatumInbetriebnahme]],Server[[#This Row],[DatumAusserbetriebnahme]],Server[[#This Row],[GeplanteNutzungsdauer]], ND_default_server)","v":3},{"$f":"KorrFaktBZ(Server[DatumInbetriebnahme]*1,Server[DatumAusserbetriebnahme]*1,Report_start*1,Report_end*1)","v":1}]
[null,null,null,null,null,null,null,null,null,null,null,null,null,null,null,null,null,null,null,null,null,null,null,null,null,null,null,null,null,{"$f":"EffektiveND(Server[[#This Row],[DatumInbetriebnahme]],Server[[#This Row],[DatumAusserbetriebnahme]],Server[[#This Row],[GeplanteNutzungsdauer]], ND_default_server)","v":3},{"$f":"KorrFaktBZ(Server[DatumInbetriebnahme]*1,Server[DatumAusserbetriebnahme]*1,Report_start*1,Report_end*1)","v":1}]
[null,null,null,null,null,null,null,null,null,null,null,null,null,null,null,null,null,null,null,null,null,null,null,null,null,null,null,null,null,{"$f":"EffektiveND(Server[[#This Row],[DatumInbetriebnahme]],Server[[#This Row],[DatumAusserbetriebnahme]],Server[[#This Row],[GeplanteNutzungsdauer]], ND_default_server)","v":3},{"$f":"KorrFaktBZ(Server[DatumInbetriebnahme]*1,Server[DatumAusserbetriebnahme]*1,Report_start*1,Report_end*1)","v":1}]
[null,null,null,null,null,null,null,null,null,null,null,null,null,null,null,null,null,null,null,null,null,null,null,null,null,null,null,null,null,{"$f":"EffektiveND(Server[[#This Row],[DatumInbetriebnahme]],Server[[#This Row],[DatumAusserbetriebnahme]],Server[[#This Row],[GeplanteNutzungsdauer]], ND_default_server)","v":3},{"$f":"KorrFaktBZ(Server[DatumInbetriebnahme]*1,Server[DatumAusserbetriebnahme]*1,Report_start*1,Report_end*1)","v":1}]
[null,null,null,null,null,null,null,null,null,null,null,null,null,null,null,null,null,null,null,null,null,null,null,null,null,null,null,null,null,{"$f":"EffektiveND(Server[[#This Row],[DatumInbetriebnahme]],Server[[#This Row],[DatumAusserbetriebnahme]],Server[[#This Row],[GeplanteNutzungsdauer]], ND_default_server)","v":3},{"$f":"KorrFaktBZ(Server[DatumInbetriebnahme]*1,Server[DatumAusserbetriebnahme]*1,Report_start*1,Report_end*1)","v":1}]
[null,null,null,null,null,null,null,null,null,null,null,null,null,null,null,null,null,null,null,null,null,null,null,null,null,null,null,null,null,{"$f":"EffektiveND(Server[[#This Row],[DatumInbetriebnahme]],Server[[#This Row],[DatumAusserbetriebnahme]],Server[[#This Row],[GeplanteNutzungsdauer]], ND_default_server)","v":3},{"$f":"KorrFaktBZ(Server[DatumInbetriebnahme]*1,Server[DatumAusserbetriebnahme]*1,Report_start*1,Report_end*1)","v":1}]
[null,null,null,null,null,null,null,null,null,null,null,null,null,null,null,null,null,null,null,null,null,null,null,null,null,null,null,null,null,{"$f":"EffektiveND(Server[[#This Row],[DatumInbetriebnahme]],Server[[#This Row],[DatumAusserbetriebnahme]],Server[[#This Row],[GeplanteNutzungsdauer]], ND_default_server)","v":3},{"$f":"KorrFaktBZ(Server[DatumInbetriebnahme]*1,Server[DatumAusserbetriebnahme]*1,Report_start*1,Report_end*1)","v":1}]
[null,null,null,null,null,null,null,null,null,null,null,null,null,null,null,null,null,null,null,null,null,null,null,null,null,null,null,null,null,{"$f":"EffektiveND(Server[[#This Row],[DatumInbetriebnahme]],Server[[#This Row],[DatumAusserbetriebnahme]],Server[[#This Row],[GeplanteNutzungsdauer]], ND_default_server)","v":3},{"$f":"KorrFaktBZ(Server[DatumInbetriebnahme]*1,Server[DatumAusserbetriebnahme]*1,Report_start*1,Report_end*1)","v":1}]
[null,null,null,null,null,null,null,null,null,null,null,null,null,null,null,null,null,null,null,null,null,null,null,null,null,null,null,null,null,{"$f":"EffektiveND(Server[[#This Row],[DatumInbetriebnahme]],Server[[#This Row],[DatumAusserbetriebnahme]],Server[[#This Row],[GeplanteNutzungsdauer]], ND_default_server)","v":3},{"$f":"KorrFaktBZ(Server[DatumInbetriebnahme]*1,Server[DatumAusserbetriebnahme]*1,Report_start*1,Report_end*1)","v":1}]
[null,null,null,null,null,null,null,null,null,null,null,null,null,null,null,null,null,null,null,null,null,null,null,null,null,null,null,null,null,{"$f":"EffektiveND(Server[[#This Row],[DatumInbetriebnahme]],Server[[#This Row],[DatumAusserbetriebnahme]],Server[[#This Row],[GeplanteNutzungsdauer]], ND_default_server)","v":3},{"$f":"KorrFaktBZ(Server[DatumInbetriebnahme]*1,Server[DatumAusserbetriebnahme]*1,Report_start*1,Report_end*1)","v":1}]
[null,null,null,null,null,null,null,null,null,null,null,null,null,null,null,null,null,null,null,null,null,null,null,null,null,null,null,null,null,{"$f":"EffektiveND(Server[[#This Row],[DatumInbetriebnahme]],Server[[#This Row],[DatumAusserbetriebnahme]],Server[[#This Row],[GeplanteNutzungsdauer]], ND_default_server)","v":3},{"$f":"KorrFaktBZ(Server[DatumInbetriebnahme]*1,Server[DatumAusserbetriebnahme]*1,Report_start*1,Report_end*1)","v":1}]
[null,null,null,null,null,null,null,null,null,null,null,null,null,null,null,null,null,null,null,null,null,null,null,null,null,null,null,null,null,{"$f":"EffektiveND(Server[[#This Row],[DatumInbetriebnahme]],Server[[#This Row],[DatumAusserbetriebnahme]],Server[[#This Row],[GeplanteNutzungsdauer]], ND_default_server)","v":3},{"$f":"KorrFaktBZ(Server[DatumInbetriebnahme]*1,Server[DatumAusserbetriebnahme]*1,Report_start*1,Report_end*1)","v":1}]

{"sheet":"2b_Externe Speicher-Systeme","index":4,"n_rows":34,"n_cols":24,"rows_kept":34,"cut":false,"hidden":false,"merged":[[5,2,5,4],[6,2,6,4],[7,2,7,4]]}
[]
[null,"IT-Inventarliste - Anlage 2b (externe Speicher-Systeme) zur KPI4DCE-Berechnung"]
[null,"Dokumentation gemäß Anforderungen 3.1.2.1 und 3.2.2.1 der Vergabekriterien"]
[]
[null,"Allgemeine Angaben",null,null,null,null,null,"Legende"]
[null,"Rechenzentrum:",{"$f":"IF('Allgemeine Angaben'!C8<>\"\",'Allgemeine Angaben'!C8,\"\")","v":""},null,null,null,null,"Obligatorische Angaben Antragstellung Blauer Engel"]
[null,"Bilanzdatum von:",{"$f":"IF('Allgemeine Angaben'!C21<>\"\",'Allgemeine Angaben'!C21,\"\")","v":""},null,null,null,null,"Ergänzende Angaben KPI4DCE (über das [+] ausklappbar)"]
[null,"Bilanzdatum bis:",{"$f":"IF('Allgemeine Angaben'!C22<>\"\",'Allgemeine Angaben'!C22,\"\")","v":""},null,null,null,null,"* Angaben für Herstellungsaufwand"]
[null,null,null,null,null,null,null,"** Angaben für Zuordnung (Allokation)"]
[null,null,null,null,null,null,null,"*** Angaben für Nutzen"]
[null,"Hinweis: Alle Angaben werden pro Gerät gemacht, auch wenn dieses mehrfach vorkommt",null,null,null,null,null,"Automatisch berechnete Werte (keine Eingabe)"]
[null,"*",null,"*","*",null,null,"**","***","*","*","*","","","*","*","","***","(***)","(***)","**","**"]
[null,"Anzahl bauglei-\ncher Geräte","Eindeutige ID oder Komma-separierte ID-Liste","Datum der \nInbetriebnahme","Datum der \nAußerbetriebnahme","Hersteller","Modell","Nennleistung ohne Redundanz","Speicherkapazität pro Gerät","Anzahl HDD","Anzahl SSD","Geplante Nutzungsdauer","Anschaffungskosten","Währung Anschaffungskosten","Speicherkapazität pro SSD","Anzahl Netzteile","Gewicht","Mittlere Belegung Speicherplatz","Mittlere Anzahl Speicherzugriffe pro Sekunde","Mittlere Datenmenge Lesen Schreiben pro Sekunde","Mittlere Leistungsaufnahme","Energiebedarf pro Jahr","Effektive Nutzungsdauer","Korrekturfaktor Berichtszeitraum (für Jahres- und Leistungswerte)"]
[null,"[Stck]","[Text (,Text, Text, ...)]","[TT.MM.JJJJ]","[TT.MM.JJJJ]","[Text]","[Text]","[W/Stck]","[GByte/Stck]","[Anzahl/Stck]","[Anzahl/Stck]","[Jahre]","[Zahlenwert]","[z.B. EUR | USD]","[GByte/Stck]","[Anzahl/Stck]","[kg/Stck]","[-]","[IO/s]","[GByte/s]","[W/Stck]","[kWh/Stck]","[a]"]
[null,"AnzahlStorage","UniqueID","DatumInbetriebnahme","DatumAusserbetriebnahme","Herstellername","Modellname","Nennleistung","SpeicherkapazitaetGByte","AnzahlHDD","AnzahlSSD","GeplanteNutzungsdauer","AnschaffungskostenProStueck","WaehrungAnschaffungskosten","GByteSSD","AnzahlNetzteile","Gewicht","MittlereBelegungSpeicherplatz","MittlereAnzahlSpeicherzugriffeProSekundeIOPS","MittlereDatenmengeLesenSchreibenProSekunde","MittlereLeistungsaufnahme","EnergiebedarfProJahr","EffektiveND","KorrekturFaktorBZ"]
[null,null,null,null,null,null,null,null,null,null,null,null,null,null,null,null,null,null,null,null,null,null,{"$f":"EffektiveND(Speicher[[#This Row],[DatumInbetriebnahme]],Speicher[[#This Row],[DatumAusserbetriebnahme]],Speicher[[#This Row],[GeplanteNutzungsdauer]], ND_default_storage)","v":3},{"$f":"KorrFaktBZ(Speicher[DatumInbetriebnahme]*1,Speicher[DatumAusserbetriebnahme]*1,Report_start*1,Report_end*1)","v":1}]
[null,null,null,null,null,null,null,null,null,null,null,null,null,null,null,null,null,null,null,null,null,null,{"$f":"EffektiveND(Speicher[[#This Row],[DatumInbetriebnahme]],Speicher[[#This Row],[DatumAusserbetriebnahme]],Speicher[[#This Row],[GeplanteNutzungsdauer]], ND_default_storage)","v":3},{"$f":"KorrFaktBZ(Speicher[DatumInbetriebnahme]*1,Speicher[DatumAusserbetriebnahme]*1,Report_start*1,Report_end*1)","v":1}]
[null,null,null,null,null,null,null,null,null,null,null,null,null,null,null,null,null,null,null,null,null,null,{"$f":"EffektiveND(Speicher[[#This Row],[DatumInbetriebnahme]],Speicher[[#This Row],[DatumAusserbetriebnahme]],Speicher[[#This Row],[GeplanteNutzungsdauer]], ND_default_storage)","v":3},{"$f":"KorrFaktBZ(Speicher[DatumInbetriebnahme]*1,Speicher[DatumAusserbetriebnahme]*1,Report_start*1,Report_end*1)","v":1}]
[null,null,null,null,null,null,null,null,null,null,null,null,null,null,null,null,null,null,null,null,null,null,{"$f":"EffektiveND(Speicher[[#This Row],[DatumInbetriebnahme]],Speicher[[#This Row],[DatumAusserbetriebnahme]],Speicher[[#This Row],[GeplanteNutzungsdauer]], ND_default_storage)","v":3},{"$f":"KorrFaktBZ(Speicher[DatumInbetriebnahme]*1,Speicher[DatumAusserbetriebnahme]*1,Report_start*1,Report_end*1)","v":1}]
[null,null,null,null,null,null,null,null,null,null,null,null,null,null,null,null,null,null,null,null,null,null,{"$f":"EffektiveND(Speicher[[#This Row],[DatumInbetriebnahme]],Speicher[[#This Row],[DatumAusserbetriebnahme]],Speicher[[#This Row],[GeplanteNutzungsdauer]], ND_default_storage)","v":3},{"$f":"KorrFaktBZ(Speicher[DatumInbetriebnahme]*1,Speicher[DatumAusserbetriebnahme]*1,Report_start*1,Report_end*1)","v":1}]
[null,null,null,null,null,null,null,null,null,null,null,null,null,null,null,null,null,null,null,null,null,null,{"$f":"EffektiveND(Speicher[[#This Row],[DatumInbetriebnahme]],Speicher[[#This Row],[DatumAusserbetriebnahme]],Speicher[[#This Row],[GeplanteNutzungsdauer]], ND_default_storage)","v":3},{"$f":"KorrFaktBZ(Speicher[DatumInbetriebnahme]*1,Speicher[DatumAusserbetriebnahme]*1,Report_start*1,Report_end*1)","v":1}]
[null,null,null,null,null,null,null,null,null,null,null,null,null,null,null,null,null,null,null,null,null,null,{"$f":"EffektiveND(Speicher[[#This Row],[DatumInbetriebnahme]],Speicher[[#This Row],[DatumAusserbetriebnahme]],Speicher[[#This Row],[GeplanteNutzungsdauer]], ND_default_storage)","v":3},{"$f":"KorrFaktBZ(Speicher[DatumInbetriebnahme]*1,Speicher[DatumAusserbetriebnahme]*1,Report_start*1,Report_end*1)","v":1}]
[null,null,null,null,null,null,null,null,null,null,null,null,null,null,null,null,null,null,null,null,null,null,{"$f":"EffektiveND(Speicher[[#This Row],[DatumInbetriebnahme]],Speicher[[#This Row],[DatumAusserbetriebnahme]],Speicher[[#This Row],[GeplanteNutzungsdauer]], ND_default_storage)","v":3},{"$f":"KorrFaktBZ(Speicher[DatumInbetriebnahme]*1,Speicher[DatumAusserbetriebnahme]*1,Report_start*1,Report_end*1)","v":1}]
[null,null,null,null,null,null,null,null,null,null,null,null,null,null,null,null,null,null,null,null,null,null,{"$f":"EffektiveND(Speicher[[#This Row],[DatumInbetriebnahme]],Speicher[[#This Row],[DatumAusserbetriebnahme]],Speicher[[#This Row],[GeplanteNutzungsdauer]], ND_default_storage)","v":3},{"$f":"KorrFaktBZ(Speicher[DatumInbetriebnahme]*1,Speicher[DatumAusserbetriebnahme]*1,Report_start*1,Report_end*1)","v":1}]
[null,null,null,null,null,null,null,null,null,null,null,null,null,null,null,null,null,null,null,null,null,null,{"$f":"EffektiveND(Speicher[[#This Row],[DatumInbetriebnahme]],Speicher[[#This Row],[DatumAusserbetriebnahme]],Speicher[[#This Row],[GeplanteNutzungsdauer]], ND_default_storage)","v":3},{"$f":"KorrFaktBZ(Speicher[DatumInbetriebnahme]*1,Speicher[DatumAusserbetriebnahme]*1,Report_start*1,Report_end*1)","v":1}]
[null,null,null,null,null,null,null,null,null,null,null,null,null,null,null,null,null,null,null,null,null,null,{"$f":"EffektiveND(Speicher[[#This Row],[DatumInbetriebnahme]],Speicher[[#This Row],[DatumAusserbetriebnahme]],Speicher[[#This Row],[GeplanteNutzungsdauer]], ND_default_storage)","v":3},{"$f":"KorrFaktBZ(Speicher[DatumInbetriebnahme]*1,Speicher[DatumAusserbetriebnahme]*1,Report_start*1,Report_end*1)","v":1}]
[null,null,null,null,null,null,null,null,null,null,null,null,null,null,null,null,null,null,null,null,null,null,{"$f":"EffektiveND(Speicher[[#This Row],[DatumInbetriebnahme]],Speicher[[#This Row],[DatumAusserbetriebnahme]],Speicher[[#This Row],[GeplanteNutzungsdauer]], ND_default_storage)","v":3},{"$f":"KorrFaktBZ(Speicher[DatumInbetriebnahme]*1,Speicher[DatumAusserbetriebnahme]*1,Report_start*1,Report_end*1)","v":1}]
[null,null,null,null,null,null,null,null,null,null,null,null,null,null,null,null,null,null,null,null,null,null,{"$f":"EffektiveND(Speicher[[#This Row],[DatumInbetriebnahme]],Speicher[[#This Row],[DatumAusserbetriebnahme]],Speicher[[#This Row],[GeplanteNutzungsdauer]], ND_default_storage)","v":3},{"$f":"KorrFaktBZ(Speicher[DatumInbetriebnahme]*1,Speicher[DatumAusserbetriebnahme]*1,Report_start*1,Report_end*1)","v":1}]
[null,null,null,null,null,null,null,null,null,null,null,null,null,null,null,null,null,null,null,null,null,null,{"$f":"EffektiveND(Speicher[[#This Row],[DatumInbetriebnahme]],Speicher[[#This Row],[DatumAusserbetriebnahme]],Speicher[[#This Row],[GeplanteNutzungsdauer]], ND_default_storage)","v":3},{"$f":"KorrFaktBZ(Speicher[DatumInbetriebnahme]*1,Speicher[DatumAusserbetriebnahme]*1,Report_start*1,Report_end*1)","v":1}]
[null,null,null,null,null,null,null,null,null,null,null,null,null,null,null,null,null,null,null,null,null,null,{"$f":"EffektiveND(Speicher[[#This Row],[DatumInbetriebnahme]],Speicher[[#This Row],[DatumAusserbetriebnahme]],Speicher[[#This Row],[GeplanteNutzungsdauer]], ND_default_storage)","v":3},{"$f":"KorrFaktBZ(Speicher[DatumInbetriebnahme]*1,Speicher[DatumAusserbetriebnahme]*1,Report_start*1,Report_end*1)","v":1}]
[null,null,null,null,null,null,null,null,null,null,null,null,null,null,null,null,null,null,null,null,null,null,{"$f":"EffektiveND(Speicher[[#This Row],[DatumInbetriebnahme]],Speicher[[#This Row],[DatumAusserbetriebnahme]],Speicher[[#This Row],[GeplanteNutzungsdauer]], ND_default_storage)","v":3},{"$f":"KorrFaktBZ(Speicher[DatumInbetriebnahme]*1,Speicher[DatumAusserbetriebnahme]*1,Report_start*1,Report_end*1)","v":1}]
[null,null,null,null,null,null,null,null,null,null,null,null,null,null,null,null,null,null,null,null,null,null,{"$f":"EffektiveND(Speicher[[#This Row],[DatumInbetriebnahme]],Speicher[[#This Row],[DatumAusserbetriebnahme]],Speicher[[#This Row],[GeplanteNutzungsdauer]], ND_default_storage)","v":3},{"$f":"KorrFaktBZ(Speicher[DatumInbetriebnahme]*1,Speicher[DatumAusserbetriebnahme]*1,Report_start*1,Report_end*1)","v":1}]
[null,null,null,null,null,null,null,null,null,null,null,null,null,null,null,null,null,null,null,null,null,null,{"$f":"EffektiveND(Speicher[[#This Row],[DatumInbetriebnahme]],Speicher[[#This Row],[DatumAusserbetriebnahme]],Speicher[[#This Row],[GeplanteNutzungsdauer]], ND_default_storage)","v":3},{"$f":"KorrFaktBZ(Speicher[DatumInbetriebnahme]*1,Speicher[DatumAusserbetriebnahme]*1,Report_start*1,Report_end*1)","v":1}]
[null,null,null,null,null,null,null,null,null,null,null,null,null,null,null,null,null,null,null,null,null,null,{"$f":"EffektiveND(Speicher[[#This Row],[DatumInbetriebnahme]],Speicher[[#This Row],[DatumAusserbetriebnahme]],Speicher[[#This Row],[GeplanteNutzungsdauer]], ND_default_storage)","v":3},{"$f":"KorrFaktBZ(Speicher[DatumInbetriebnahme]*1,Speicher[DatumAusserbetriebnahme]*1,Report_start*1,Report_end*1)","v":1}]

{"sheet":"2c_Netzwerk-Geräte","index":5,"n_rows":34,"n_cols":22,"rows_kept":34,"cut":false,"hidden":false,"merged":[[1,1,1,7],[5,2,5,3],[6,2,6,3],[7,2,7,3]]}
[]
[null,"IT-Inventarliste - Anlage 2c (Netzwerk-Geräte) zur KPI4DCE-Berechnung"]
[null,"Dokumentation gemäß Anforderungen 3.1.2.1 und 3.2.2.1 der Vergabekriterien"]
[]
[null,"Allgemeine Angaben",null,null,null,null,"Obligatorische Angaben Antragstellung Blauer Engel"]
[null,"Rechenzentrum:",{"$f":"IF('Allgemeine Angaben'!C8<>\"\",'Allgemeine Angaben'!C8,\"\")","v":""},null,null,null,"Ergänzende Angaben KPI4DCE (über das [+] ausklappbar)"]
[null,"Bilanzdatum von:",{"$f":"IF('Allgemeine Angaben'!C21<>\"\",'Allgemeine Angaben'!C21,\"\")","v":""},null,null,null,"* Angaben für Herstellungsaufwand"]
[null,"Bilanzdatum bis:",{"$f":"IF('Allgemeine Angaben'!C22<>\"\",'Allgemeine Angaben'!C22,\"\")","v":""},null,null,null,"** Angaben für Zuordnung (Allokation)"]
[null,null,null,null,null,null,"*** Angaben für Nutzen"]
[null,null,null,null,null,null,"Automatisch berechnete Werte (keine Eingabe)"]
[null,"Hinweis: Alle Angaben werden pro Gerät gemacht, auch wenn dieses mehrfach vorkommt"]
[null,"*",null,"*","*",null,null,"**","*",null,null,"(***)","(***)",null,null,null,null,"***","**","**"]
[null,"Anzahl bauglei-\ncher Geräte","Eindeutige ID oder Komma-separierte ID-Liste","Datum der \nInbetriebnahme","Datum der \nAußerbetriebnahme","Hersteller","Modell","Nennleistung ohne Redundanz","Geplante Nutzungsdauer","Anschaffungskosten","Währung Anschaffungskosten","Anzahl Ports pro Gerät","Maximale Bandbreite pro Port","Netzwerkebene","Anzahl Netzteile","Gewicht","Mittlere genutzte Bandbreite interner Datenverkehr","Mittlere genutzte Bandbreite externer Datenverkehr","Mittlere Leistungsaufnahme","Energiebedarf pro Jahr","Effektive Nutzungsdauer","Korrekturfaktor Berichtszeitraum (für Jahres- und Leistungswerte)"]
[null,"[Stck]","[Text (,Text, Text, ...)]","[TT.MM.JJJJ]","[TT.MM.JJJJ]","[Text]","[Text]","[W/Stck]","[Jahre]","[Zahlenwert]","[z.B. EUR | USD]","[Anzahl/Stck]","[Mbit/s]","[intern, extern]","[Anzahl/Stck]","[kg/Stck]","[Mbit/s/Stck]","[Mbit/s/Stck]","[W/Stck]","[kWh/Stck]","[a]"]
[null,"AnzahlNetzwerk","UniqueID","DatumInbetriebnahme","DatumAusserbetriebnahme","Herstellername","Modellname","Nennleistung","GeplanteNutzungsdauer","AnschaffungskostenProStueck","WaehrungAnschaffungskosten","AnzahlPorts","MaximaleBandbreiteProPort","Netzwerkebene","AnzahlNetzteile","Gewicht","MittlereGenutzteBandbreiteInternerDatenverkehr","MittlereGenutzteBandbreiteExternerDatenverkehr","MittlereLeistungsaufnahme","EnergiebedarfProJahr","EffektiveND","KorrekturFaktorBZ"]
[null,null,null,null,null,null,null,null,null,null,null,null,null,null,null,null,null,null,null,null,{"$f":"EffektiveND(Netzwerk[[#This Row],[DatumInbetriebnahme]],Netzwerk[[#This Row],[DatumAusserbetriebnahme]],Netzwerk[[#This Row],[GeplanteNutzungsdauer]], ND_default_switch)","v":3},{"$f":"KorrFaktBZ(Netzwerk[DatumInbetriebnahme]*1,Netzwerk[DatumAusserbetriebnahme]*1,Report_start*1,Report_end*1)","v":1}]
[null,null,null,null,null,null,null,null,null,null,null,null,null,null,null,null,null,null,null,null,{"$f":"EffektiveND(Netzwerk[[#This Row],[DatumInbetriebnahme]],Netzwerk[[#This Row],[DatumAusserbetriebnahme]],Netzwerk[[#This Row],[GeplanteNutzungsdauer]], ND_default_switch)","v":3},{"$f":"KorrFaktBZ(Netzwerk[DatumInbetriebnahme]*1,Netzwerk[DatumAusserbetriebnahme]*1,Report_start*1,Report_end*1)","v":1}]
[null,null,null,null,null,null,null,null,null,null,null,null,null,null,null,null,null,null,null,null,{"$f":"EffektiveND(Netzwerk[[#This Row],[DatumInbetriebnahme]],Netzwerk[[#This Row],[DatumAusserbetriebnahme]],Netzwerk[[#This Row],[GeplanteNutzungsdauer]], ND_default_switch)","v":3},{"$f":"KorrFaktBZ(Netzwerk[DatumInbetriebnahme]*1,Netzwerk[DatumAusserbetriebnahme]*1,Report_start*1,Report_end*1)","v":1}]
[null,null,null,null,null,null,null,null,null,null,null,null,null,null,null,null,null,null,null,null,{"$f":"EffektiveND(Netzwerk[[#This Row],[DatumInbetriebnahme]],Netzwerk[[#This Row],[DatumAusserbetriebnahme]],Netzwerk[[#This Row],[GeplanteNutzungsdauer]], ND_default_switch)","v":3},{"$f":"KorrFaktBZ(Netzwerk[DatumInbetriebnahme]*1,Netzwerk[DatumAusserbetriebnahme]*1,Report_start*1,Report_end*1)","v":1}]
[null,null,null,null,null,null,null,null,null,null,null,null,null,null,null,null,null,null,null,null,{"$f":"EffektiveND(Netzwerk[[#This Row],[DatumInbetriebnahme]],Netzwerk[[#This Row],[DatumAusserbetriebnahme]],Netzwerk[[#This Row],[GeplanteNutzungsdauer]], ND_default_switch)","v":3},{"$f":"KorrFaktBZ(Netzwerk[DatumInbetriebnahme]*1,Netzwerk[DatumAusserbetriebnahme]*1,Report_start*1,Report_end*1)","v":1}]
[null,null,null,null,null,null,null,null,null,null,null,null,null,null,null,null,null,null,null,null,{"$f":"EffektiveND(Netzwerk[[#This Row],[DatumInbetriebnahme]],Netzwerk[[#This Row],[DatumAusserbetriebnahme]],Netzwerk[[#This Row],[GeplanteNutzungsdauer]], ND_default_switch)","v":3},{"$f":"KorrFaktBZ(Netzwerk[DatumInbetriebnahme]*1,Netzwerk[DatumAusserbetriebnahme]*1,Report_start*1,Report_end*1)","v":1}]
[null,null,null,null,null,null,null,null,null,null,null,null,null,null,null,null,null,null,null,null,{"$f":"EffektiveND(Netzwerk[[#This Row],[DatumInbetriebnahme]],Netzwerk[[#This Row],[DatumAusserbetriebnahme]],Netzwerk[[#This Row],[GeplanteNutzungsdauer]], ND_default_switch)","v":3},{"$f":"KorrFaktBZ(Netzwerk[DatumInbetriebnahme]*1,Netzwerk[DatumAusserbetriebnahme]*1,Report_start*1,Report_end*1)","v":1}]
[null,null,null,null,null,null,null,null,null,null,null,null,null,null,null,null,null,null,null,null,{"$f":"EffektiveND(Netzwerk[[#This Row],[DatumInbetriebnahme]],Netzwerk[[#This Row],[DatumAusserbetriebnahme]],Netzwerk[[#This Row],[GeplanteNutzungsdauer]], ND_default_switch)","v":3},{"$f":"KorrFaktBZ(Netzwerk[DatumInbetriebnahme]*1,Netzwerk[DatumAusserbetriebnahme]*1,Report_start*1,Report_end*1)","v":1}]
[null,null,null,null,null,null,null,null,null,null,null,null,null,null,null,null,null,null,null,null,{"$f":"EffektiveND(Netzwerk[[#This Row],[DatumInbetriebnahme]],Netzwerk[[#This Row],[DatumAusserbetriebnahme]],Netzwerk[[#This Row],[GeplanteNutzungsdauer]], ND_default_switch)","v":3},{"$f":"KorrFaktBZ(Netzwerk[DatumInbetriebnahme]*1,Netzwerk[DatumAusserbetriebnahme]*1,Report_start*1,Report_end*1)","v":1}]
[null,null,null,null,null,null,null,null,null,null,null,null,null,null,null,null,null,null,null,null,{"$f":"EffektiveND(Netzwerk[[#This Row],[DatumInbetriebnahme]],Netzwerk[[#This Row],[DatumAusserbetriebnahme]],Netzwerk[[#This Row],[GeplanteNutzungsdauer]], ND_default_switch)","v":3},{"$f":"KorrFaktBZ(Netzwerk[DatumInbetriebnahme]*1,Netzwerk[DatumAusserbetriebnahme]*1,Report_start*1,Report_end*1)","v":1}]
[null,null,null,null,null,null,null,null,null,null,null,null,null,null,null,null,null,null,null,null,{"$f":"EffektiveND(Netzwerk[[#This Row],[DatumInbetriebnahme]],Netzwerk[[#This Row],[DatumAusserbetriebnahme]],Netzwerk[[#This Row],[GeplanteNutzungsdauer]], ND_default_switch)","v":3},{"$f":"KorrFaktBZ(Netzwerk[DatumInbetriebnahme]*1,Netzwerk[DatumAusserbetriebnahme]*1,Report_start*1,Report_end*1)","v":1}]
[null,null,null,null,null,null,null,null,null,null,null,null,null,null,null,null,null,null,null,null,{"$f":"EffektiveND(Netzwerk[[#This Row],[DatumInbetriebnahme]],Netzwerk[[#This Row],[DatumAusserbetriebnahme]],Netzwerk[[#This Row],[GeplanteNutzungsdauer]], ND_default_switch)","v":3},{"$f":"KorrFaktBZ(Netzwerk[DatumInbetriebnahme]*1,Netzwerk[DatumAusserbetriebnahme]*1,Report_start*1,Report_end*1)","v":1}]
[null,null,null,null,null,null,null,null,null,null,null,null,null,null,null,null,null,null,null,null,{"$f":"EffektiveND(Netzwerk[[#This Row],[DatumInbetriebnahme]],Netzwerk[[#This Row],[DatumAusserbetriebnahme]],Netzwerk[[#This Row],[GeplanteNutzungsdauer]], ND_default_switch)","v":3},{"$f":"KorrFaktBZ(Netzwerk[DatumInbetriebnahme]*1,Netzwerk[DatumAusserbetriebnahme]*1,Report_start*1,Report_end*1)","v":1}]
[null,null,null,null,null,null,null,null,null,null,null,null,null,null,null,null,null,null,null,null,{"$f":"EffektiveND(Netzwerk[[#This Row],[DatumInbetriebnahme]],Netzwerk[[#This Row],[DatumAusserbetriebnahme]],Netzwerk[[#This Row],[GeplanteNutzungsdauer]], ND_default_switch)","v":3},{"$f":"KorrFaktBZ(Netzwerk[DatumInbetriebnahme]*1,Netzwerk[DatumAusserbetriebnahme]*1,Report_start*1,Report_end*1)","v":1}]
[null,null,null,null,null,null,null,null,null,null,null,null,null,null,null,null,null,null,null,null,{"$f":"EffektiveND(Netzwerk[[#This Row],[DatumInbetriebnahme]],Netzwerk[[#This Row],[DatumAusserbetriebnahme]],Netzwerk[[#This Row],[GeplanteNutzungsdauer]], ND_default_switch)","v":3},{"$f":"KorrFaktBZ(Netzwerk[DatumInbetriebnahme]*1,Netzwerk[DatumAusserbetriebnahme]*1,Report_start*1,Report_end*1)","v":1}]
[null,null,null,null,null,null,null,null,null,null,null,null,null,null,null,null,null,null,null,null,{"$f":"EffektiveND(Netzwerk[[#This Row],[DatumInbetriebnahme]],Netzwerk[[#This Row],[DatumAusserbetriebnahme]],Netzwerk[[#This Row],[GeplanteNutzungsdauer]], ND_default_switch)","v":3},{"$f":"KorrFaktBZ(Netzwerk[DatumInbetriebnahme]*1,Netzwerk[DatumAusserbetriebnahme]*1,Report_start*1,Report_end*1)","v":1}]
[null,null,null,null,null,null,null,null,null,null,null,null,null,null,null,null,null,null,null,null,{"$f":"EffektiveND(Netzwerk[[#This Row],[DatumInbetriebnahme]],Netzwerk[[#This Row],[DatumAusserbetriebnahme]],Netzwerk[[#This Row],[GeplanteNutzungsdauer]], ND_default_switch)","v":3},{"$f":"KorrFaktBZ(Netzwerk[DatumInbetriebnahme]*1,Netzwerk[DatumAusserbetriebnahme]*1,Report_start*1,Report_end*1)","v":1}]
[null,null,null,null,null,null,null,null,null,null,null,null,null,null,null,null,null,null,null,null,{"$f":"EffektiveND(Netzwerk[[#This Row],[DatumInbetriebnahme]],Netzwerk[[#This Row],[DatumAusserbetriebnahme]],Netzwerk[[#This Row],[GeplanteNutzungsdauer]], ND_default_switch)","v":3},{"$f":"KorrFaktBZ(Netzwerk[DatumInbetriebnahme]*1,Netzwerk[DatumAusserbetriebnahme]*1,Report_start*1,Report_end*1)","v":1}]
[null,null,null,null,null,null,null,null,null,null,null,null,null,null,null,null,null,null,null,null,{"$f":"EffektiveND(Netzwerk[[#This Row],[DatumInbetriebnahme]],Netzwerk[[#This Row],[DatumAusserbetriebnahme]],Netzwerk[[#This Row],[GeplanteNutzungsdauer]], ND_default_switch)","v":3},{"$f":"KorrFaktBZ(Netzwerk[DatumInbetriebnahme]*1,Netzwerk[DatumAusserbetriebnahme]*1,Report_start*1,Report_end*1)","v":1}]

{"sheet":"2d_PDU","index":6,"n_rows":15,"n_cols":9,"rows_kept":15,"cut":false,"hidden":false,"merged":[[1,1,1,7],[7,2,7,4],[5,2,5,4],[6,2,6,4],[5,7,6,7],[7,7,8,7]]}
[]
[null,"IT-Inventarliste - Anlage 2d (Neuanschaffung intelligenter PDUs) zur KPI4DCE-Berechnung"]
[null,"Dokumentation gemäß Anforderungen 3.2.2.1 und 3.2.2.5 der Vergabekriterien"]
[]
[null,"Allgemeine Angaben",null,null,null,null,null,"Legende"]
[null,"Rechenzentrum:",{"$f":"IF('Allgemeine Angaben'!C8<>\"\",'Allgemeine Angaben'!C8,\"\")","v":""},null,null,null,null,"Obligatorische Angaben Abschlussevaluation"]
[null,"Bilanzdatum von:",{"$f":"IF('Allgemeine Angaben'!C21<>\"\",'Allgemeine Angaben'!C21,\"\")","v":""}]
[null,"Bilanzdatum bis:",{"$f":"IF('Allgemeine Angaben'!C22<>\"\",'Allgemeine Angaben'!C22,\"\")","v":""}]
[]
[]
[null,"Hinweis: Alle Angaben werden pro Gerät gemacht, auch wenn dieses mehrfach vorkommt"]
[]
[null,"Anzahl bauglei-\ncher Geräte","Eindeutige ID oder Komma-separierte ID-Liste","Datum der \nInbetriebnahme","Datum der \nAußerbetriebnahme","Hersteller","Modell","Anzahl \nStromausgänge","Verlustleistung"]
[null,"[Stck]","[Text (,Text, Text, ...)]","[TT.MM.JJJ]","[TT.MM.JJJ]","[Text]","[Text]","[Anzahl/Stck]","[W/Stck]"]
[null,"Anzahl","UniqueID","DatumInbetriebnahme","DatumAusserbetriebnahme","Herstellername","Modellname","AnzahlStromausgaenge","VerlustleistungGesamt"]

{"sheet":"2e_Energie_Monitoring","index":7,"n_rows":27,"n_cols":26,"rows_kept":27,"cut":false,"hidden":false,"merged":[[5,2,5,4],[6,2,6,4],[7,2,7,4]]}
[]
[null,"Monitoring Energie - Anlage 2e zur KPI4DCE-Berechnung"]
[null,"Dokumentation gemäß Anforderungen 3.1.1.1, 3.1.1.2 und 3.2.1.1 der Vergabekriterien"]
[]
[null,"Allgemeine Angaben",null,null,null,null,null,"Obligatorische Angaben Antragstellung Blauer Engel"]
[null,"Rechenzentrum:",{"$f":"IF('Allgemeine Angaben'!C8<>\"\",'Allgemeine Angaben'!C8,\"\")","v":""},null,null,null,null,"Ergänzende Angaben KPI4DCE (über das [+] ausklappbar)"]
[null,"Bilanzdatum von:",{"$f":"IF('Allgemeine Angaben'!C21<>\"\",'Allgemeine Angaben'!C21,\"\")","v":""},null,null,null,null,"* Angaben für Aufwand Nutzungsphase"]
[null,"Bilanzdatum bis:",{"$f":"IF('Allgemeine Angaben'!C22<>\"\",'Allgemeine Angaben'!C22,\"\")","v":""},null,null,null,null,"** Angaben für Zuordnung (Allokation)",null,null,null,null,null,null,null,"° Die Kältearbeit ist die abgeführte Wärmemenge Qth,RZ im Betrachtungszeitraum. Sie geht in die Berechnung des JAZ ein."]
[null,null,null,null,null,null,null,"*** Angaben für Nutzen",null,null,null,null,null,null,null,"°° Die thermische Kühllast berechnet sich vereinfacht durch die Summe der elektrischen Anschlussleistungen im zu kühlenden Raum."]
[null,null,null,null,null,null,null,"Automatisch berechnete Werte (keine Eingabe)"]
[null,"*","*","*",null,"**",null,"**",null,"**",null,null,null,null,null,null,null,null,null,null,null,"*","*","**"]
[null,"Beginn Monitoring-zeitraum","Ende Monitoring-zeitraum","Strombedarf RZ gesamt","Spitzenlast RZ gesamt","Strombedarf Server","Spitzenlast Server","Strombedarf Storage","Spitzenlast Storage","Strombedarf Netzwerk","Spitzenlast Netzwerk","Strombedarf IT","Spitzenlast IT","Strombedarf Kühlsystem","Spitzenlast Kühlsystem (elektrisch)","Kältearbeit Kühlsystem (thermisch)","Kühllast Kühlsystem (thermisch)","Strombedarf USV (Verluste)","Spitzenlast USV","Strombedarf Verluste PDU","Strombedarf Sonstiges","Brennstoffbedarf","Brennstoffart","PUE","JAZ","Anteil Monitoring- zeitraum im Berichtszeitraum"]
[null,null,null,"MPEVU + MPEE","MPEVU + MPEE","MPIT2_SV","MPIT2_SV","MPIT2_St","MPIT2_St","MPIT2_NW","MPIT2_NW","MPIT2","MPIT2","MPKS","MPKS","(siehe °)","(siehe °°)","MPUSV - MPIT1","MPUSV","MPIT1 - MPIT2","MPSo "]
[null,"[TT.MM.JJJ]","[TT.MM.JJJ]","[kWhel]","[kWel]","[kWhel]","[kWel]","[kWhel]","[kWel]","[kWhel]","[kWel]","[kWhel]","[kWel]","[kWhel]","[kWel]","[kWhth]","[kWth]","[kWhel]","[kWel]","[kWhel]","[kWhel]","[kWh]","[Heizoel | Erdgas | Fluessiggas | Holz-Pellets | Holz-Hackschnitzel-Wald | Holz-Hackschnitzel-KUP]","[kWh/kWh]","[kWhth/kWhel]","[-]"]
[null,"MonitoringStart","MonitoringEnde","StrombedarfRZgesamt","SpitzenlastRZgesamt","StrombedarfServer","SpitzenlastServer","StrombedarfStorage","SpitzenlastStorage","StrombedarfNetzwerk","SpitzenlastNetzwerk","StrombedarfIT","SpitzenlastIT","StrombedarfKS","SpitzenlastKSel","KaeltearbeitKSth","KuehllastKSth","StrombedarfVerlusteUSV","SpitzenlastUSV","StrombedarfVerlustePDU","StrombedarfSonstiges","Brennstoffbedarf","Brennstoffart","PUE","JAZ","RatioMZzuBZ"]
[null,null,null,null,null,null,null,null,null,null,null,null,null,null,null,null,null,null,null,null,null,null,null,null,null,{"$f":"KorrFaktBZ(Report_start*1,Report_end*1,EnergieMonitoring[MonitoringStart]*1,EnergieMonitoring[MonitoringEnde]*1)","v":0}]
[null,null,null,null,null,null,null,null,null,null,null,null,null,null,null,null,null,null,null,null,null,null,null,null,null,{"$f":"KorrFaktBZ(Report_start*1,Report_end*1,EnergieMonitoring[MonitoringStart]*1,EnergieMonitoring[MonitoringEnde]*1)","v":0}]
[null,null,null,null,null,null,null,null,null,null,null,null,null,null,null,null,null,null,null,null,null,null,null,null,null,{"$f":"KorrFaktBZ(Report_start*1,Report_end*1,EnergieMonitoring[MonitoringStart]*1,EnergieMonitoring[MonitoringEnde]*1)","v":0}]
[null,null,null,null,null,null,null,null,null,null,null,null,null,null,null,null,null,null,null,null,null,null,null,null,null,{"$f":"KorrFaktBZ(Report_start*1,Report_end*1,EnergieMonitoring[MonitoringStart]*1,EnergieMonitoring[MonitoringEnde]*1)","v":0}]
[null,null,null,null,null,null,null,null,null,null,null,null,null,null,null,null,null,null,null,null,null,null,null,null,null,{"$f":"KorrFaktBZ(Report_start*1,Report_end*1,EnergieMonitoring[MonitoringStart]*1,EnergieMonitoring[MonitoringEnde]*1)","v":0}]
[null,null,null,null,null,null,null,null,null,null,null,null,null,null,null,null,null,null,null,null,null,null,null,null,null,{"$f":"KorrFaktBZ(Report_start*1,Report_end*1,EnergieMonitoring[MonitoringStart]*1,EnergieMonitoring[MonitoringEnde]*1)","v":0}]
[null,null,null,null,null,null,null,null,null,null,null,null,null,null,null,null,null,null,null,null,null,null,null,null,null,{"$f":"KorrFaktBZ(Report_start*1,Report_end*1,EnergieMonitoring[MonitoringStart]*1,EnergieMonitoring[MonitoringEnde]*1)","v":0}]
[null,null,null,null,null,null,null,null,null,null,null,null,null,null,null,null,null,null,null,null,null,null,null,null,null,{"$f":"KorrFaktBZ(Report_start*1,Report_end*1,EnergieMonitoring[MonitoringStart]*1,EnergieMonitoring[MonitoringEnde]*1)","v":0}]
[null,null,null,null,null,null,null,null,null,null,null,null,null,null,null,null,null,null,null,null,null,null,null,null,null,{"$f":"KorrFaktBZ(Report_start*1,Report_end*1,EnergieMonitoring[MonitoringStart]*1,EnergieMonitoring[MonitoringEnde]*1)","v":0}]
[null,null,null,null,null,null,null,null,null,null,null,null,null,null,null,null,null,null,null,null,null,null,null,null,null,{"$f":"KorrFaktBZ(Report_start*1,Report_end*1,EnergieMonitoring[MonitoringStart]*1,EnergieMonitoring[MonitoringEnde]*1)","v":0}]
[null,null,null,null,null,null,null,null,null,null,null,null,null,null,null,null,null,null,null,null,null,null,null,null,null,{"$f":"KorrFaktBZ(Report_start*1,Report_end*1,EnergieMonitoring[MonitoringStart]*1,EnergieMonitoring[MonitoringEnde]*1)","v":0}]
[null,null,null,null,null,null,null,null,null,null,null,null,null,null,null,null,null,null,null,null,null,null,null,null,null,{"$f":"KorrFaktBZ(Report_start*1,Report_end*1,EnergieMonitoring[MonitoringStart]*1,EnergieMonitoring[MonitoringEnde]*1)","v":0}]

{"sheet":"2f_IT_Monitoring","index":8,"n_rows":28,"n_cols":8,"rows_kept":28,"cut":false,"hidden":false,"merged":[[5,2,5,4],[6,2,6,4],[7,2,7,4]]}
[]
[null,"Monitoring IT-Last - Anlage 2f zur KPI4DCE-Berechnung"]
[null,"Dokumentation gemäß Anforderungen 3.1.2.2 und 3.2.2.2 der Vergabekriterien"]
[]
[null,"Allgemeine Angaben",null,null,null,null,null,"Obligatorische Angaben Antragstellung Blauer Engel"]
[null,"Rechenzentrum:",{"$f":"IF('Allgemeine Angaben'!C8<>\"\",'Allgemeine Angaben'!C8,\"\")","v":""},null,null,null,null,"Ergänzende Angaben KPI4DCE"]
[null,"Bilanzdatum von:",{"$f":"IF('Allgemeine Angaben'!C21<>\"\",'Allgemeine Angaben'!C21,\"\")","v":""},null,null,null,null,"* Angaben für Aufwand Nutzungsphase"]
[null,"Bilanzdatum bis:",{"$f":"IF('Allgemeine Angaben'!C22<>\"\",'Allgemeine Angaben'!C22,\"\")","v":""},null,null,null,null,"** Angaben für Zuordnung (Allokation)"]
[null,null,null,null,null,null,null,"*** Angaben für Nutzen"]
[null,null,null,null,null,null,null,"Automatisch berechnete Werte (keine Eingabe)"]
[]
[]
[null,"Beginn Monitoring-zeitraum","Ende Monitoring-zeitraum","Mittlere CPU-Auslastung (ITEUsv)","Mittlere Storage-Auslastung","Datenübertragung extern","Anteil Monitoring- zeitraum im Berichtszeitraum"]
[null,"[TT.MM.JJJ]","[TT.MM.JJJ]","[%]","[%]","[Gbit]","[-]"]
[null,"MonitoringStart","MonitoringEnde","MittelwertITEUsv","MittlereAuslastungStorage","ExterneDatenuebertragung","RatioMZzuBZ"]
[null,null,null,null,null,null,{"$f":"KorrFaktBZ(Report_start*1,Report_end*1,ITMonitoring[MonitoringStart]*1,ITMonitoring[MonitoringEnde]*1)","v":0}]
[null,null,null,null,null,null,{"$f":"KorrFaktBZ(Report_start*1,Report_end*1,ITMonitoring[MonitoringStart]*1,ITMonitoring[MonitoringEnde]*1)","v":0}]
[null,null,null,null,null,null,{"$f":"KorrFaktBZ(Report_start*1,Report_end*1,ITMonitoring[MonitoringStart]*1,ITMonitoring[MonitoringEnde]*1)","v":0}]
[null,null,null,null,null,null,{"$f":"KorrFaktBZ(Report_start*1,Report_end*1,ITMonitoring[MonitoringStart]*1,ITMonitoring[MonitoringEnde]*1)","v":0}]
[null,null,null,null,null,null,{"$f":"KorrFaktBZ(Report_start*1,Report_end*1,ITMonitoring[MonitoringStart]*1,ITMonitoring[MonitoringEnde]*1)","v":0}]
[null,null,null,null,null,null,{"$f":"KorrFaktBZ(Report_start*1,Report_end*1,ITMonitoring[MonitoringStart]*1,ITMonitoring[MonitoringEnde]*1)","v":0}]
[null,null,null,null,null,null,{"$f":"KorrFaktBZ(Report_start*1,Report_end*1,ITMonitoring[MonitoringStart]*1,ITMonitoring[MonitoringEnde]*1)","v":0}]
[null,null,null,null,null,null,{"$f":"KorrFaktBZ(Report_start*1,Report_end*1,ITMonitoring[MonitoringStart]*1,ITMonitoring[MonitoringEnde]*1)","v":0}]
[null,null,null,null,null,null,{"$f":"KorrFaktBZ(Report_start*1,Report_end*1,ITMonitoring[MonitoringStart]*1,ITMonitoring[MonitoringEnde]*1)","v":0}]
[null,null,null,null,null,null,{"$f":"KorrFaktBZ(Report_start*1,Report_end*1,ITMonitoring[MonitoringStart]*1,ITMonitoring[MonitoringEnde]*1)","v":0}]
[null,null,null,null,null,null,{"$f":"KorrFaktBZ(Report_start*1,Report_end*1,ITMonitoring[MonitoringStart]*1,ITMonitoring[MonitoringEnde]*1)","v":0}]
[null,null,null,null,null,null,{"$f":"KorrFaktBZ(Report_start*1,Report_end*1,ITMonitoring[MonitoringStart]*1,ITMonitoring[MonitoringEnde]*1)","v":0}]
[null,null,null,null,null,null,{"$f":"KorrFaktBZ(Report_start*1,Report_end*1,ITMonitoring[MonitoringStart]*1,ITMonitoring[MonitoringEnde]*1)","v":0}]

{"sheet":"2g_Kälteanlagen","index":9,"n_rows":15,"n_cols":19,"rows_kept":15,"cut":false,"hidden":false,"merged":[[5,2,5,4],[6,2,6,4],[7,2,7,4]]}
[]
[null,"IT-Inventarliste  - Anlage 2g (Kälteanlagen) zur KPI4DCE-Berechnung"]
[null,"Dokumentation gemäß Anforderungen 3.1.2.1 und 3.2.2.1 der Vergabekriterien"]
[]
[null,"Allgemeine Angaben",null,null,null,null,null,"Obligatorische Angaben Antragstellung Blauer Engel"]
[null,"Rechenzentrum:",{"$f":"IF('Allgemeine Angaben'!C8<>\"\",'Allgemeine Angaben'!C8,\"\")","v":""},null,null,null,null,"Ergänzende Angaben KPI4DCE"]
[null,"Bilanzdatum von:",{"$f":"IF('Allgemeine Angaben'!C21<>\"\",'Allgemeine Angaben'!C21,\"\")","v":""},null,null,null,null,"* Angaben für Aufwand Nutzungsphase"]
[null,"Bilanzdatum bis:",{"$f":"IF('Allgemeine Angaben'!C22<>\"\",'Allgemeine Angaben'!C22,\"\")","v":""},null,null,null,null,"** Angaben für Zuordnung (Allokation)"]
[null,null,null,null,null,null,null,"*** Angaben für Nutzen"]
[]
[null,"Hinweis: Alle Angaben werden pro Gerät gemacht, auch wenn dieses mehrfach vorkommt"]
[null,"*",null,"*","*",null,null,null,null,null,null,"*","*","*","*","*","*"]
[null,"Anzahl bauglei-\ncher Geräte","Eindeutige ID oder Komma-separierte ID-Liste","Datum der \nInbetriebnahme","Datum der \nAußerbetriebnahme","Hersteller","Modell","Nennleistung elektrisch","Nennleistung Kälte","Anschaffungskosten ","Währung Anschaffungskosten","Art des Kaeltemittels (korrekte Bezeichnunhg verwenden!)","Kaeltemittel Füllmenge","Verdampfungsart","Leckagerate pro Jahr","Nachfüllmenge Kältemittel pro Jahr (alternativ zu Leckagerate, höhere Priorität)","Wasserverbrauch pro Jahr","Wasserqualität","Energiebedarf pro Jahr"]
[null,"[Stck]","[Text (,Text, Text, ...)]","[TT.MM.JJJJ]","[TT.MM.JJJJ]","[Text]","[Text]","[kW_el]","[kW_th]","[Zahlenwert]","[z.B. EUR | USD]","[R134A | R290  | R32 | R404A | R407A | R407C | R410A | R717  | R718  | R744]","[kg/Stck]","[Direktverdampfer | Fluessigkeitskuehler]","[-]","[kg/Stck]","[m3/Stck]","[Trinkwasser | ...]","[kWh/Stck]"]
[null,"Anzahl","UniqueID","DatumInbetriebnahme","DatumAusserbetriebnahme","Herstellername","Modellname","NennleistungElektrisch","NennleistungKaelte","AnschaffungskostenProStueck","WaehrungAnschaffungskosten","KaeltemittelArt","KaeltemittelFuellmenge","Verdampfungsart","LeckagerateProJahr","KaeltemittelNachfuellmengeProJahr","WasserverbrauchProJahr","Wasserqualitaet","EnergiebedarfProJahr"]

{"sheet":"Faktoren","index":10,"n_rows":158,"n_cols":3,"rows_kept":158,"cut":false,"hidden":true,"merged":[]}
["Faktoren","Wert","Unit"]
["ADP_CPU_DieSize",1.1456185259092199E-5,"kg Sb eq."]
["ADP_CPU_Gold",8.8072026990770897E-3,"kg Sb eq."]
["ADP_CPU_T",8.5684147915178598E-7,"kg Sb eq."]
["GWP_CPU_DieSize",2.74928374301156,"kg CO2 eq."]
["GWP_CPU_Gold",2.8361689213924701,"kg CO2 eq."]
["GWP_CPU_T",0.3194999690625,"kg CO2 eq."]
["KEA_CPU_DieSize",38.517430798957498,"MJ"]
["KEA_CPU_Gold",43.885751460031003,"MJ"]
["KEA_CPU_T",4.9335043966565797,"MJ"]
["ADP_KK",2.48E-3,"kg Sb eq."]
["GWP_KK",3.1246,"kg CO2 eq."]
["KEA_KK",63.264600000000002,"MJ"]
["ADP_RAM_DieSize",9.5717525259092194E-5,"kg Sb eq."]
["ADP_RAM_PCB",1.6626776023999999E-4,"kg Sb eq."]
["ADP_RAM_Gold",1.4414333955287599E-3,"kg Sb eq."]
["ADP_RAM_T",7.5356693184857196E-6,"kg Sb eq."]
["GWP_RAM_DieSize",2.9728605540525601,"kg CO2 eq."]
["GWP_RAM_PCB",1.76826416853672,"kg CO2 eq."]
["GWP_RAM_Gold",0.46418241277497602,"kg CO2 eq."]
["GWP_RAM_T",2.8099084518000002,"kg CO2 eq."]
["KEA_RAM_DieSize",39.312770798957501,"MJ"]
["KEA_RAM_PCB",20.687379377357399,"MJ"]
["KEA_RAM_Gold",7.1825742978519802,"MJ"]
["KEA_RAM_T",43.388723140833797,"MJ"]
["ADP_NAND",9.5717525259092194E-5,"kg Sb eq."]
["GWP_NAND",2.9728605540525601,"kg CO2 eq."]
["KEA_NAND",39.312770798957501,"MJ"]
["ADP_SSD_PCB",5.2681760000000005E-4,"kg Sb eq."]
["ADP_SSD_T",1.1182687500000001E-6,"kg Sb eq."]
["GWP_SSD_PCB",5.6027258927999997,"kg CO2 eq."]
["GWP_SSD_T",0.41698125000000003,"kg CO2 eq."]
["KEA_SSD_PCB",65.547737806399994,"MJ"]
["KEA_SSD_T",6.4387450059375002,"MJ"]
["ADP_HDD",2.8600000000000001E-3,"kg Sb eq."]
["GWP_HDD",31.1082,"kg CO2 eq."]
["KEA_HDD",275.52048000000002,"MJ"]
["ADP_MBunb",3.9927855000000002E-3,"kg Sb eq."]
["ADP_MBRest",9.2509999999999995E-2,"kg Sb eq."]
["ADP_MB",9.6502785499999993E-2,"kg Sb eq."]
["GWP_MBunb",42.4634308065,"kg CO2 eq."]
["GWP_MBRest",53.790300000000002,"kg CO2 eq."]
["GWP_MB",9.6502785499999993E-2,"kg CO2 eq."]
["KEA_MBunb",496.79064835949998,"MJ"]
["KEA_MBRest",808.10910999999999,"MJ"]
["KEA_MB",1304.8997583595001,"MJ"]
["ADP_RackRest",0.11912721,"kg Sb eq."]
["GWP_RackRest",149.57958590000001,"kg CO2 eq."]
["KEA_RackRest",2200.6718695899999,"MJ"]
["ADP_BladeSystemGeh",0.49774077,"kg Sb eq."]
["GWP_BladeSystemGeh",830.02160601000003,"kg CO2 eq."]
["KEA_BladeSystemGeh",11956.59473544,"MJ"]
["ADP_BladeRest",4.0740000000000004E-3,"kg Sb eq."]
["GWP_BladeRest",30.870671999999999,"kg CO2 eq."]
["KEA_BladeRest",435.35041200000001,"MJ"]
["ADP_AssemblyTest",1.8687175000000001E-5,"kg Sb eq."]
["GWP_AssemblyTest",6.6764099999999997,"kg CO2 eq."]
["KEA_AssemblyTest",68.640377481650006,"MJ"]
["ADP_StorageRest",0.61575000000000002,"kg Sb eq."]
["GWP_StorageRest",819.98325,"kg CO2 eq."]
["KEA_StorageRest",11348.757750000001,"MJ"]
["ADP_Switch",0.17856,"kg Sb eq."]
["GWP_Switch",280.61090000000002,"kg CO2 eq."]
["KEA_Switch",3866.4796900000001,"MJ"]
["ADP_PSU",1.967E-2,"kg Sb eq."]
["GWP_PSU",24.297550000000001,"kg CO2 eq."]
["KEA_PSU",351.60338000000002,"MJ"]
["ADP_Strom",5.3316699999999997E-6,"kg Sb eq."]
["GWP_Strom",0.63527,"kg CO2 eq."]
["KEA_Strom",10.669650000000001,"MJ"]
["ADP_R134A",6.0000000000000001E-3,"kg Sb eq."]
["ADP_R290 ",1.01757E-5,"kg Sb eq."]
["ADP_R32",7.1500000000000001E-3,"kg Sb eq."]
["ADP_R404A",7.4400000000000004E-3,"kg Sb eq."]
["ADP_R407A",7.5700000000000003E-3,"kg Sb eq."]
["ADP_R407C",7.11E-3,"kg Sb eq."]
["ADP_R410A",8.2500000000000004E-3,"kg Sb eq."]
["ADP_R717 ",5.5092400000000001E-5,"kg Sb eq."]
["ADP_R718 ",2.88697E-8,"kg Sb eq."]
["ADP_R744 ",5.3616199999999997E-5,"kg Sb eq."]
["ADP_KMsonst",0,"kg Sb eq."]
["ADP_KMdefault",6.0000000000000001E-3,"kg Sb eq."]
["GWP_R134A",1445.6612299999999,"kg CO2 eq."]
["GWP_R290 ",3.82728,"kg CO2 eq."]
["GWP_R32",983.02836000000002,"kg CO2 eq."]
["GWP_R404A",3930.5483199999999,"kg CO2 eq."]
["GWP_R407A",2118.8125199999999,"kg CO2 eq."]
["GWP_R407C",1786.45434,"kg CO2 eq."]
["GWP_R410A",2096.9421299999999,"kg CO2 eq."]
["GWP_R717 ",2.0335299999999998,"kg CO2 eq."]
["GWP_R718 ",3.6000000000000002E-4,"kg CO2 eq."]
["GWP_R744 ",1.7771399999999999,"kg CO2 eq."]
["GWP_KMsonst",0,"kg CO2 eq."]
["GWP_KMdefault",1445.6612299999999,"kg CO2 eq."]
["KEA_R134A",120.31167000000001,"MJ"]
["KEA_R290 ",52.01464,"MJ"]
["KEA_R32",103.28635,"MJ"]
["KEA_R404A",149.31241,"MJ"]
["KEA_R407A",139.59117000000001,"MJ"]
["KEA_R407C",130.57369,"MJ"]
["KEA_R410A",140.15469999999999,"MJ"]
["KEA_R717 ",42.322539999999996,"MJ"]
["KEA_R718 ",7.1603478149999998E-3,"MJ"]
["KEA_R744 ",9.8428100000000001,"MJ"]
["KEA_KMsonst",0,"MJ"]
["KEA_KMdefault",120.31167000000001,"MJ"]
["KMLeck_DV",0.05,"100%"]
["KMLeck_FK",0.03,"100%"]
["KMLeck_std",0.05,"100%"]
["KM_Art1","Direktverdampfer"]
["KM_Art2","Fluessigkeitskuehler"]
["KM_std"]
["ADP_Heizoel",null,"kg Sb eq."]
["ADP_Erdgas",null,"kg Sb eq."]
["ADP_Fluessiggas",null,"kg Sb eq."]
["ADP_HolzPellets",null,"kg Sb eq."]
["ADP_HolzHackschnitzel",null,"kg Sb eq."]
["ADP_BS_sonst",null,"kg Sb eq."]
["GWP_Heizoel",0.31900000000000001,"kg CO2 eq."]
["GWP_Erdgas",0.25,"kg CO2 eq."]
["GWP_Fluessiggas",0.27700000000000002,"kg CO2 eq."]
["GWP_HolzPellets",2.7E-2,"kg CO2 eq."]
["GWP_HolzHackschnitzel",1.9E-2,"kg CO2 eq."]
["GWP_BS_sonst",0.31900000000000001,"kg CO2 eq."]
["KEA_Heizoel",null,"MJ"]
["KEA_Erdgas",null,"MJ"]
["KEA_Fluessiggas",null,"MJ"]
["KEA_HolzPellets",null,"MJ"]
["KEA_HolzHackschnitzel",null,"MJ"]
["KEA_BS_sonst",null,"MJ"]
["BS_Art1","Heizoel"]
["BS_Art2","Erdgas"]
["BS_Art3","Fluessiggas"]
["BS_Art4","Holz-Pellets"]
["BS_Art5","Holz-Hackschnitzel"]
["BS_sonst"]
["DieSizeFaktor",0.24584,"cm²/Kern"]
["DieSizeKonstante",0.49157000000000001,"cm²"]
["RAMproDie",1.875,"GByte/cm²"]
["NANDproDie",49.802238805970099,"Gbyte/cm²"]
["GewichtRackRest",15.451000000000001,"kg/Rack"]
["GewichtHDD",0.437,"kg/HDD"]
["GewichtSSD",6.8000000000000005E-2,"kg/SSD"]
["GewichtPSU",2,"kg/PSU"]
["GewichtCPU_CPUKK",0.31819999999999998,"kg/CPU&KK"]
["GewichtMB",1.667,"kg/Motherboard"]
["GewichtBladeGeh",5.9189999999999996,"kg/Blade"]
["GewichtBladeSystemOhnePSU",89.361000000000004,"kg/BladeSystem"]
["GewichtBladeRest",4.2,"kg"]
["GewichtStorageRest",25,"kg"]
["ND_default_server",3,"a"]
["ND_default_storage",3,"a"]
["ND_default_switch",3,"a"]
["ND_default_kaelte",10,"a"]
["Pel_Server_Default",400,"W"]
["Pel_Storage_Default",300,"W"]
["Pel_Switch_Default",200,"W"]
["TageProJahr",365.25,"d/a"]

{"sheet":"2h_VirtuelleServer","index":11,"n_rows":25,"n_cols":16,"rows_kept":25,"cut":false,"hidden":false,"merged":[[1,1,1,6],[5,2,5,4],[6,2,6,4],[7,2,7,4]]}
[]
[null,"Erfassung von Virtuellen Servern und zugeordneten Diensten oder Applikationen",null,null,null,null,null,null,null,null,"Service","CPU-Kerne","Arbeitsspeicher","Festplatte","Netzwerk","Dienste"]
[null,"Monitoring der Nutzungsphase des Rechenzentrums",null,null,null,null,null,null,null,null,"Gesamtergebnis"]
[null,null,null,null,null,null,"Legende"]
[null,"Allgemeine Angaben",null,null,null,null,"Ergänzende Angaben Cloud-Services"]
[null,"Rechenzentrum:",{"$f":"IF('Allgemeine Angaben'!C8<>\"\",'Allgemeine Angaben'!C8,\"\")","v":""},null,null,null,"Automatisch berechnete Werte (keine Eingabe)"]
[null,"Bilanzdatum von:",{"$f":"IF('Allgemeine Angaben'!C21<>\"\",'Allgemeine Angaben'!C21,\"\")","v":""}]
[null,"Bilanzdatum bis:",{"$f":"IF('Allgemeine Angaben'!C22<>\"\",'Allgemeine Angaben'!C22,\"\")","v":""}]
[]
[]
[null,"Hinweis: Alle Angaben werden pro Virtuellem Server gemacht, auch wenn dieser mehrfach vorkommt"]
[null,"i.d.R. = 1","Bezeichnung der Virtuellen Maschine","wenn mehrere Sockel belegt sind, dann Produkt sockets*cores",null,null,null,"z.B. Mailserver, Lohnbuchhaltung, Webserver, Office-Anwendungen","z.B. E-Mail-Postfach, Virtueller PC, Office-365-Nutzer, Mitarbeiter"]
[null,"Anzahl indentisch genutzter VMs","Eindeutige ID oder Komma-separierte ID-Liste","Anzahl virtuelle CPU-Kerne (cores) pro VM","Virtuelle RAM-Kapazität pro VM","Virtueller Speicherplatz pro VM","Bandbreite Virtuelle Netzwerkkarte (NIC) pro VM","Bezeichnung Dienst/Applikation","Beschreibung einzelne Service-Einheit","Anzahl Serviceeinheiten pro VM","Kommentar (Erläuterungen)","Cores","RAM","Disk","NIC","Services"]
[null,"[Stck]","[Text (,Text, Text, ...)]","[Anzahl]","[GByte]","[GByte]","[Mbit/s]","[Text]","[Text]","[Stck]","[Text]","[Anzahl]","[GByte]","[GByte]","[Mbit/s]","[Stck]"]
[null,"Anzahl","UniqueID","AnzahlKerne","GByteRAM","GByteDisk","MaximaleBandbreite","ServiceBezeichnung","ServiceEinheit","ServiceAnzahl","Kommentar","Cores","RAM","Disk","NIC","Services"]
[null,null,null,null,null,null,null,null,null,null,null,{"$f":"VirtuelleServer[[#This Row],[Anzahl]]*VirtuelleServer[[#This Row],[AnzahlKerne]]","v":0},{"$f":"VirtuelleServer[[#This Row],[Anzahl]]*VirtuelleServer[[#This Row],[GByteRAM]]","v":0},{"$f":"VirtuelleServer[[#This Row],[Anzahl]]*VirtuelleServer[[#This Row],[GByteDisk]]","v":0},{"$f":"VirtuelleServer[[#This Row],[Anzahl]]*VirtuelleServer[[#This Row],[MaximaleBandbreite]]","v":0},{"$f":"VirtuelleServer[[#This Row],[Anzahl]]*VirtuelleServer[[#This Row],[ServiceAnzahl]]","v":0}]
[null,null,null,null,null,null,null,null,null,null,null,{"$f":"VirtuelleServer[[#This Row],[Anzahl]]*VirtuelleServer[[#This Row],[AnzahlKerne]]","v":0},{"$f":"VirtuelleServer[[#This Row],[Anzahl]]*VirtuelleServer[[#This Row],[GByteRAM]]","v":0},{"$f":"VirtuelleServer[[#This Row],[Anzahl]]*VirtuelleServer[[#This Row],[GByteDisk]]","v":0},{"$f":"VirtuelleServer[[#This Row],[Anzahl]]*VirtuelleServer[[#This Row],[MaximaleBandbreite]]","v":0},{"$f":"VirtuelleServer[[#This Row],[Anzahl]]*VirtuelleServer[[#This Row],[ServiceAnzahl]]","v":0}]
[null,null,null,null,null,null,null,null,null,null,null,{"$f":"VirtuelleServer[[#This Row],[Anzahl]]*VirtuelleServer[[#This Row],[AnzahlKerne]]","v":0},{"$f":"VirtuelleServer[[#This Row],[Anzahl]]*VirtuelleServer[[#This Row],[GByteRAM]]","v":0},{"$f":"VirtuelleServer[[#This Row],[Anzahl]]*VirtuelleServer[[#This Row],[GByteDisk]]","v":0},{"$f":"VirtuelleServer[[#This Row],[Anzahl]]*VirtuelleServer[[#This Row],[MaximaleBandbreite]]","v":0},{"$f":"VirtuelleServer[[#This Row],[Anzahl]]*VirtuelleServer[[#This Row],[ServiceAnzahl]]","v":0}]
[null,null,null,null,null,null,null,null,null,null,null,{"$f":"VirtuelleServer[[#This Row],[Anzahl]]*VirtuelleServer[[#This Row],[AnzahlKerne]]","v":0},{"$f":"VirtuelleServer[[#This Row],[Anzahl]]*VirtuelleServer[[#This Row],[GByteRAM]]","v":0},{"$f":"VirtuelleServer[[#This Row],[Anzahl]]*VirtuelleServer[[#This Row],[GByteDisk]]","v":0},{"$f":"VirtuelleServer[[#This Row],[Anzahl]]*VirtuelleServer[[#This Row],[MaximaleBandbreite]]","v":0},{"$f":"VirtuelleServer[[#This Row],[Anzahl]]*VirtuelleServer[[#This Row],[ServiceAnzahl]]","v":0}]
[null,null,null,null,null,null,null,null,null,null,null,{"$f":"VirtuelleServer[[#This Row],[Anzahl]]*VirtuelleServer[[#This Row],[AnzahlKerne]]","v":0},{"$f":"VirtuelleServer[[#This Row],[Anzahl]]*VirtuelleServer[[#This Row],[GByteRAM]]","v":0},{"$f":"VirtuelleServer[[#This Row],[Anzahl]]*VirtuelleServer[[#This Row],[GByteDisk]]","v":0},{"$f":"VirtuelleServer[[#This Row],[Anzahl]]*VirtuelleServer[[#This Row],[MaximaleBandbreite]]","v":0},{"$f":"VirtuelleServer[[#This Row],[Anzahl]]*VirtuelleServer[[#This Row],[ServiceAnzahl]]","v":0}]
[null,null,null,null,null,null,null,null,null,null,null,{"$f":"VirtuelleServer[[#This Row],[Anzahl]]*VirtuelleServer[[#This Row],[AnzahlKerne]]","v":0},{"$f":"VirtuelleServer[[#This Row],[Anzahl]]*VirtuelleServer[[#This Row],[GByteRAM]]","v":0},{"$f":"VirtuelleServer[[#This Row],[Anzahl]]*VirtuelleServer[[#This Row],[GByteDisk]]","v":0},{"$f":"VirtuelleServer[[#This Row],[Anzahl]]*VirtuelleServer[[#This Row],[MaximaleBandbreite]]","v":0},{"$f":"VirtuelleServer[[#This Row],[Anzahl]]*VirtuelleServer[[#This Row],[ServiceAnzahl]]","v":0}]
[null,null,null,null,null,null,null,null,null,null,null,{"$f":"VirtuelleServer[[#This Row],[Anzahl]]*VirtuelleServer[[#This Row],[AnzahlKerne]]","v":0},{"$f":"VirtuelleServer[[#This Row],[Anzahl]]*VirtuelleServer[[#This Row],[GByteRAM]]","v":0},{"$f":"VirtuelleServer[[#This Row],[Anzahl]]*VirtuelleServer[[#This Row],[GByteDisk]]","v":0},{"$f":"VirtuelleServer[[#This Row],[Anzahl]]*VirtuelleServer[[#This Row],[MaximaleBandbreite]]","v":0},{"$f":"VirtuelleServer[[#This Row],[Anzahl]]*VirtuelleServer[[#This Row],[ServiceAnzahl]]","v":0}]
[null,null,null,null,null,null,null,null,null,null,null,{"$f":"VirtuelleServer[[#This Row],[Anzahl]]*VirtuelleServer[[#This Row],[AnzahlKerne]]","v":0},{"$f":"VirtuelleServer[[#This Row],[Anzahl]]*VirtuelleServer[[#This Row],[GByteRAM]]","v":0},{"$f":"VirtuelleServer[[#This Row],[Anzahl]]*VirtuelleServer[[#This Row],[GByteDisk]]","v":0},{"$f":"VirtuelleServer[[#This Row],[Anzahl]]*VirtuelleServer[[#This Row],[MaximaleBandbreite]]","v":0},{"$f":"VirtuelleServer[[#This Row],[Anzahl]]*VirtuelleServer[[#This Row],[ServiceAnzahl]]","v":0}]
[null,null,null,null,null,null,null,null,null,null,null,{"$f":"VirtuelleServer[[#This Row],[Anzahl]]*VirtuelleServer[[#This Row],[AnzahlKerne]]","v":0},{"$f":"VirtuelleServer[[#This Row],[Anzahl]]*VirtuelleServer[[#This Row],[GByteRAM]]","v":0},{"$f":"VirtuelleServer[[#This Row],[Anzahl]]*VirtuelleServer[[#This Row],[GByteDisk]]","v":0},{"$f":"VirtuelleServer[[#This Row],[Anzahl]]*VirtuelleServer[[#This Row],[MaximaleBandbreite]]","v":0},{"$f":"VirtuelleServer[[#This Row],[Anzahl]]*VirtuelleServer[[#This Row],[ServiceAnzahl]]","v":0}]
[null,null,null,null,null,null,null,null,null,null,null,{"$f":"VirtuelleServer[[#This Row],[Anzahl]]*VirtuelleServer[[#This Row],[AnzahlKerne]]","v":0},{"$f":"VirtuelleServer[[#This Row],[Anzahl]]*VirtuelleServer[[#This Row],[GByteRAM]]","v":0},{"$f":"VirtuelleServer[[#This Row],[Anzahl]]*VirtuelleServer[[#This Row],[GByteDisk]]","v":0},{"$f":"VirtuelleServer[[#This Row],[Anzahl]]*VirtuelleServer[[#This Row],[MaximaleBandbreite]]","v":0},{"$f":"VirtuelleServer[[#This Row],[Anzahl]]*VirtuelleServer[[#This Row],[ServiceAnzahl]]","v":0}]

{"sheet":"Übersicht Datenbedarf","index":12,"n_rows":134,"n_cols":3,"rows_kept":134,"cut":false,"hidden":false,"merged":[]}
["parent","name","type"]
["Serverdaten","AnzahlServer","xs:integer"]
["Serverdaten","UniqueID","xs:string"]
["Serverdaten","DatumInbetriebnahme","xs:dateTime"]
["Serverdaten","DatumAusserbetriebnahme","xs:dateTime"]
["Serverdaten","Herstellername","xs:string"]
["Serverdaten","Modellname","xs:string"]
["Serverdaten","Nennleistung","xs:decimal"]
["Serverdaten","NetzeilEnergieStandard","xs:string"]
["Serverdaten","ServerBenchmarkBezeichnung","xs:string"]
["Serverdaten","ServerBenchmarkWert","xs:decimal"]
["Serverdaten","BegruendungAusnahme","xs:string"]
["Serverdaten","GeplanteNutzungsdauer","xs:integer"]
["Serverdaten","ServertypRack_Blade","xs:string"]
["Serverdaten","AnteilAmBladeSystem","xs:decimal"]
["Serverdaten","AnschaffungskostenProStueck","xs:decimal"]
["Serverdaten","WaehrungAnschaffungskosten","xs:string"]
["Serverdaten","AnzahlCPU","xs:integer"]
["Serverdaten","AnzahlKerneProCPU","xs:integer"]
["Serverdaten","GByteRAM","xs:integer"]
["Serverdaten","AnzahlRAMModule","xs:integer"]
["Serverdaten","AnzahlHDD","xs:integer"]
["Serverdaten","AnzahlSSD","xs:integer"]
["Serverdaten","GByteSSD","xs:integer"]
["Serverdaten","AnzahlNetzteile","xs:integer"]
["Serverdaten","Gewicht","xs:decimal"]
["Serverdaten","MittlereCPUAuslastung","xs:decimal"]
["Serverdaten","MittlereLeistungsaufnahme","xs:decimal"]
["Serverdaten","EnergiebedarfProJahr","xs:decimal"]
["Storagedaten","AnzahlStorage","xs:integer"]
["Storagedaten","UniqueID","xs:string"]
["Storagedaten","DatumInbetriebnahme","xs:dateTime"]
["Storagedaten","DatumAusserbetriebnahme","xs:dateTime"]
["Storagedaten","Herstellername","xs:string"]
["Storagedaten","Modellname","xs:string"]
["Storagedaten","Nennleistung","xs:decimal"]
["Storagedaten","SpeicherkapazitaetGByte","xs:decimal"]
["Storagedaten","AnzahlHDD","xs:integer"]
["Storagedaten","AnzahlSSD","xs:integer"]
["Storagedaten","GeplanteNutzungsdauer","xs:decimal"]
["Storagedaten","AnschaffungskostenProStueck","xs:decimal"]
["Storagedaten","WaehrungAnschaffungskosten","xs:string"]
["Storagedaten","GByteSSD","xs:decimal"]
["Storagedaten","AnzahlNetzteile","xs:decimal"]
["Storagedaten","Gewicht","xs:decimal"]
["Storagedaten","MittlereBelegungSpeicherplatz","xs:decimal"]
["Storagedaten","MittlereAnzahlSpeicherzugriffeProSekundeIOPS","xs:decimal"]
["Storagedaten","MittlereDatenmengeLesenSchreibenProSekunde","xs:decimal"]
["Storagedaten","MittlereLeistungsaufnahme","xs:decimal"]
["Storagedaten","EnergiebedarfProJahr","xs:decimal"]
["Netzwerkdaten","AnzahlNetzwerk","xs:integer"]
["Netzwerkdaten","UniqueID","xs:string"]
["Netzwerkdaten","DatumInbetriebnahme","xs:dateTime"]
["Netzwerkdaten","DatumAusserbetriebnahme","xs:dateTime"]
["Netzwerkdaten","Herstellername","xs:string"]
["Netzwerkdaten","Modellname","xs:string"]
["Netzwerkdaten","Nennleistung","xs:decimal"]
["Netzwerkdaten","GeplanteNutzungsdauer","xs:decimal"]
["Netzwerkdaten","AnschaffungskostenProStueck","xs:decimal"]
["Netzwerkdaten","WaehrungAnschaffungskosten","xs:string"]
["Netzwerkdaten","AnzahlPorts","xs:integer"]
["Netzwerkdaten","MaximaleBandbreiteProPort","xs:decimal"]
["Netzwerkdaten","Netzwerkebene","xs:string"]
["Netzwerkdaten","AnzahlNetzteile","xs:integer"]
["Netzwerkdaten","Gewicht","xs:decimal"]
["Netzwerkdaten","MittlereGenutzteBandbreiteInternerDatenverkehr","xs:decimal"]
["Netzwerkdaten","MittlereGenutzteBandbreiteExternerDatenverkehr","xs:decimal"]
["Netzwerkdaten","MittlereLeistungsaufnahme","xs:decimal"]
["Netzwerkdaten","EnergiebedarfProJahr","xs:decimal"]
["Stromverteilungsdaten","AnzahlPDU","xs:integer"]
["Stromverteilungsdaten","UniqueID","xs:string"]
["Stromverteilungsdaten","DatumInbetriebnahme","xs:dateTime"]
["Stromverteilungsdaten","DatumAusserbetriebnahme","xs:dateTime"]
["Stromverteilungsdaten","Herstellername","xs:string"]
["Stromverteilungsdaten","Modellname","xs:string"]
["Stromverteilungsdaten","AnzahlStromausgaenge","xs:integer"]
["Stromverteilungsdaten","VerlustleistungGesamt","xs:decimal"]
["Kaelteanlagendaten","AnzahlKaelte","xs:integer"]
["Kaelteanlagendaten","UniqueID","xs:string"]
["Kaelteanlagendaten","DatumInbetriebnahme","xs:dateTime"]
["Kaelteanlagendaten","DatumAusserbetriebnahme","xs:dateTime"]
["Kaelteanlagendaten","Herstellername","xs:string"]
["Kaelteanlagendaten","Modellname","xs:string"]
["Kaelteanlagendaten","NennleistungElektrisch","xs:decimal"]
["Kaelteanlagendaten","NennleistungKaelte","xs:decimal"]
["Kaelteanlagendaten","AnschaffungskostenProStueck","xs:decimal"]
["Kaelteanlagendaten","WaehrungAnschaffungskosten","xs:string"]
["Kaelteanlagendaten","KaeltemittelArt","xs:string"]
["Kaelteanlagendaten","KaeltemittelFuellmenge","xs:decimal"]
["Kaelteanlagendaten","Verdampfungsart","xs:string"]
["Kaelteanlagendaten","LeckagerateProJahr","xs:decimal"]
["Kaelteanlagendaten","KaeltemittelNachfuellmengeProJahr","xs:decimal"]
["Kaelteanlagendaten","WasserverbrauchProJahr","xs:decimal"]
["Kaelteanlagendaten","Wasserqualitaet","xs:string"]
["Kaelteanlagendaten","EnergiebedarfProJahr","xs:decimal"]
["MonitoringEnergie","MonitoringStart","xs:dateTime"]
["MonitoringEnergie","MonitoringEnde","xs:dateTime"]
["MonitoringEnergie","StrombedarfRZgesamt","xs:decimal"]
["MonitoringEnergie","SpitzenlastRZgesamt","xs:decimal"]
["MonitoringEnergie","StrombedarfServer","xs:decimal"]
["MonitoringEnergie","SpitzenlastServer","xs:decimal"]
["MonitoringEnergie","StrombedarfStorage","xs:decimal"]
["MonitoringEnergie","SpitzenlastStorage","xs:decimal"]
["MonitoringEnergie","StrombedarfNetzwerk","xs:decimal"]
["MonitoringEnergie","SpitzenlastNetzwerk","xs:decimal"]
["MonitoringEnergie","StrombedarfIT","xs:decimal"]
["MonitoringEnergie","SpitzenlastIT","xs:decimal"]
["MonitoringEnergie","StrombedarfKS","xs:decimal"]
["MonitoringEnergie","SpitzenlastKSel","xs:decimal"]
["MonitoringEnergie","KaeltearbeitKSth","xs:decimal"]
["MonitoringEnergie","KuehllastKSth","xs:decimal"]
["MonitoringEnergie","StrombedarfVerlusteUSV","xs:decimal"]
["MonitoringEnergie","SpitzenlastUSV","xs:decimal"]
["MonitoringEnergie","StrombedarfVerlustePDU","xs:decimal"]
["MonitoringEnergie","StrombedarfSonstiges","xs:decimal"]
["MonitoringEnergie","Brennstoffbedarf","xs:decimal"]
["MonitoringEnergie","Brennstoffart","xs:string"]
["MonitoringEnergie","PUE","xs:decimal"]
["MonitoringEnergie","JAZ","xs:decimal"]
["MonitoringPerformance","MonitoringStart","xs:dateTime"]
["MonitoringPerformance","MonitoringEnde","xs:dateTime"]
["MonitoringPerformance","MittelwertITEUsv","xs:decimal"]
["MonitoringPerformance","MittlereAuslastungStorage","xs:decimal"]
["MonitoringPerformance","ExterneDatenuebertragung","xs:decimal"]
["VirtuelleServerdaten","Anzahl","xs:integer"]
["VirtuelleServerdaten","UniqueID","xs:string"]
["VirtuelleServerdaten","AnzahlKerne","xs:integer"]
["VirtuelleServerdaten","GByteRAM","xs:integer"]
["VirtuelleServerdaten","GByteDisk","xs:integer"]
["VirtuelleServerdaten","MaximaleBandbreite","xs:decimal"]
["VirtuelleServerdaten","ServiceBezeichnung","xs:string"]
["VirtuelleServerdaten","ServiceEinheit","xs:string"]
["VirtuelleServerdaten","ServiceAnzahl","xs:integer"]
["VirtuelleServerdaten","Kommentar","xs:string"]